Cogmind - Beta 17.1 @@@ ROGUE MODE // 2026.09.21 @ 21:22:21 Player: 4R-ZE3 Result: Crushed by singularity! Performance ------------- Evolutions (9) 4500 Regions Visited (26) 5200 Robots Destroyed (526) 2630 Value Destroyed (32734) 32734 Prototype IDs (368) 7360 Alien Tech Used (5) 1000 Bonus (69235) 69235 TOTAL SCORE: 122659 Bonus ------- Triggered High Security 1500 High Alert Combat Kills 10071 Follower Combat Kills 1278 Network Hubs Disabled 200 Met Zhirov 300 Built Enhanced Grunts 300 A7 Reached Mainframe 300 Met R17 at Cetus 500 Met R17 at Research 2000 Scanned by Researcher 500 Destroyed Superfortress 15000 Destroyed MAIN.C Guards 500 Met MAIN.C 5000 Hacked MAIN.C 300 Destroyed MAIN.C Shell 5000 Destroyed MAIN.C 10000 Met Architect 300 Destroyed A8 300 Destroyed A6 400 Destroyed A5 500 Destroyed Architect 15000 Friendly Fire -14 Cogmind --------- Core Integrity 0/1600 Matter 150/300 Energy 95/100 System Corruption 1% Temperature Cool (0) Movement Core (50) Location -1/Access_0 Parts ------- > --- POWER (3) -------- (None) > --- PROPULSION (6) --- (None) > --- UTILITY (11) ----- (None) > --- WEAPON (5) ------- (None) > --- INVENTORY (5) ---- Hybrid Graviton Reactor Experimental Biometal Leg 2N-1CE's Frost Array Concept Hypertargeting System Graphene Brace Peak State ------------ > --- POWER ------------ Vortex-ZP Reactor > --- PROPULSION ------- Biometal-Gravjet Exoskeleton > --- UTILITY ---------- Armored Scrap Engine Experimental Coolant Injector Concept Thermoelectric Network Concept Antigrav Storage Unit Experimental Targeting Computer Experimental Targeting Computer Experimental Core Analyzer Experimental Core Analyzer Experimental Weapon Cycler AEGIS Remote Shield > --- WEAPON ----------- Graviton Cannon Gatling Ballistic Helical Construct/C > --- INVENTORY -------- Hybrid Graviton Reactor Zero-point Reactor High-density Centrium Leg High-density Centrium Leg High-density Centrium Leg Experimental Biometal Leg Experimental Biometal Leg 2N-1CE's Frost Array Experimental Coolant Injector Concept Thermoelectric Network Experimental Matter Compressor Concept NT7 Matterbank Concept Hypertargeting System Concept Weapon Articulator Experimental ECM Suite Concept Cloak Mesh Graphene Brace Advanced Focal Shield Thermal Barrier Experimental EM Shield Experimental Force Field Concept Matter Streamer Heavy Quantum Rifle Helical Railgun [Rating: 264] Favorites ----------- Power Constructs Engine Cooled Ion Engine Power Core Concept Zero-point Core Reactor Constructs Propulsion Constructs Treads Light Treads Leg Constructs Wheel Wheel Hover Unit Cooled Gravmag System Utility Armored Scrap Engine Device Armored Scrap Engine Storage Huge Storage Unit Processor Advanced Signal Interpreter Hackware Hacking Suite Protection Centrium Medium Armor Plating Artifact Phase Redirector Weapon Constructs Energy Gun Advanced Beam Rifle Energy Cannon Enhanced Nova Cannon Ballistic Gun Autogun Ballistic Cannon Constructs Launcher Fusion Bomb Launcher Special Weapon Advanced Remote Datajack Impact Weapon Hammer Piercing Weapon Heavy Pick Build | -11 -10 -10 -8 -8 -8 -6 -6 -6 -6 -6 -5 -5 -5 -5 -4 -4 -4 -4 -3 -3 -2 -2 -2 -1 -1 -1 ------- Run | Yrd Mat Sub Mat Sto Rec Fac Ext Cet Arc Hub Fac Upp Upp Zhi Pro Fac Upp Upp Res Tes Res Qua Frg Acc Com Ac0 Slots Evolved 18 | . . . 4 . . 4 . . . . 2 . . . . 2 . . 2 . 2 . . 2 . . Power 2 | . . . . . . 1 . . . . . . . . . . . . 1 . . . . . . . Propulsion 4 | . . . 2 . . . . . . . 1 . . . . . . . . . 1 . . . . . Utility 9 | . . . 1 . . 3 . . . . 1 . . . . 1 . . . . 1 . . 2 . . Weapon 3 | . . . 1 . . . . . . . . . . . . 1 . . 1 . . . . . . . Parts Attached 158 | . 7 . 13 19 7 23 4 1 2 2 2 3 . 3 1 2 1 2 3 8 5 7 24 4 14 1 Power 10 | . 1 . . 3 1 1 . . . . . . . . . . . . 1 . . . 1 2 . . Engine 5 | . 1 . . 2 . 1 . . . . . . . . . . . . 1 . . . . . . . Core 3 | . . . . 1 1 . . . . . . . . . . . . . . . . . 1 . . . Reactor 2 | . . . . . . . . . . . . . . . . . . . . . . . . 2 . . Propulsion 21 | . 2 . 4 6 4 . 1 . . . 1 . . 1 . . 1 . . 1 . . . . . . Treads 16 | . 2 . 4 6 2 . 1 . . . 1 . . . . . . . . . . . . . . . Leg 1 | . . . . . . . . . . . . . . . . . 1 . . . . . . . . . Wheel 3 | . . . . . 2 . . . . . . . . . . . . . . 1 . . . . . . Hover 1 | . . . . . . . . . . . . . . 1 . . . . . . . . . . . . Flight . | . . . . . . . . . . . . . . . . . . . . . . . . . . . Utility 94 | . 2 . 2 6 1 15 3 1 2 2 1 3 . 2 1 2 . 2 2 4 3 7 19 2 11 1 Device 63 | . . . . 2 1 10 2 . 2 2 . 3 . 1 1 2 . 2 1 2 2 5 17 1 6 1 Storage 9 | . 1 . . 1 . 2 . . . . . . . . . . . . 1 . . 1 1 . 2 . Processor 16 | . 1 . 2 2 . 2 . . . . 1 . . . . . . . . 2 1 . 1 1 3 . Hackware 1 | . . . . . . 1 . . . . . . . . . . . . . . . . . . . . Protection 4 | . . . . 1 . . 1 1 . . . . . 1 . . . . . . . . . . . . Artifact 1 | . . . . . . . . . . . . . . . . . . . . . . 1 . . . . Weapon 33 | . 2 . 7 4 1 7 . . . . . . . . . . . . . 3 2 . 4 . 3 . Energy Gun 6 | . . . . 2 . 1 . . . . . . . . . . . . . 1 . . 2 . . . Energy Cannon 7 | . . . 1 . . 2 . . . . . . . . . . . . . . 1 . 2 . 1 . Ballistic Gun 11 | . 1 . 6 2 . 1 . . . . . . . . . . . . . 1 . . . . . . Ballistic Cannon 4 | . . . . . 1 1 . . . . . . . . . . . . . 1 . . . . 1 . Launcher 1 | . . . . . . . . . . . . . . . . . . . . . 1 . . . . . Special Weapon 1 | . . . . . . . . . . . . . . . . . . . . . . . . . 1 . Impact Weapon 2 | . 1 . . . . 1 . . . . . . . . . . . . . . . . . . . . Slashing Weapon . | . . . . . . . . . . . . . . . . . . . . . . . . . . . Piercing Weapon 1 | . . . . . . 1 . . . . . . . . . . . . . . . . . . . . Special Melee Weapon . | . . . . . . . . . . . . . . . . . . . . . . . . . . . Unidentified Prototypes 31 | . . . 1 4 1 . . 1 . 2 . . . 4 . . . . . 4 . 1 9 1 3 . Parts Lost 22 | . 2 . 1 1 . 8 . . . . . . . . . . . . 1 1 . 2 5 . . 1 Power 4 | . 1 . . 1 . 1 . . . . . . . . . . . . . . . . 1 . . . Propulsion 1 | . . . . . . 1 . . . . . . . . . . . . . . . . . . . . Utility 14 | . . . . . . 6 . . . . . . . . . . . . 1 1 . 1 4 . . 1 Weapon 3 | . 1 . 1 . . . . . . . . . . . . . . . . . . 1 . . . . Highest Loss Streak 3 | . 1 . 1 1 . 3 . . . . . . . . . . . . 1 1 . 1 3 . . 1 To Critical Strikes 1 | . . . . . . . . . . . . . . . . . . . . . . . 1 . . . Average Backups 22 | . 8 10 16 19 12 21 24 24 25 25 23 24 25 24 25 24 24 24 24 24 24 24 24 21 24 23 Power 1 | . . . . . 1 1 2 1 1 1 2 2 2 1 1 1 1 1 . . . 1 1 1 1 1 Propulsion 2 | . 3 4 3 . 5 3 3 4 3 2 . . . . 2 1 1 1 . . . . . 2 2 4 Utility 9 | . . 1 3 1 . 5 6 6 6 7 7 8 9 9 9 11 12 12 12 12 13 15 17 16 18 14 Weapon 9 | . 3 5 9 16 4 10 13 13 14 14 14 14 14 13 11 9 9 9 9 10 8 5 2 1 . 1 Tool/Special . | . . . . . . . . . . . . . . . . . . . . . . . . . . . Unused Backups 187 | . 5 . 4 13 49 21 3 3 1 2 . 1 . 4 1 8 . 2 5 9 12 7 12 . 12 13 Power 14 | . 1 . . . 1 3 . 1 . . . . . 1 . . . . . 2 . 2 . . 2 1 Propulsion 53 | . 1 . . 3 16 11 . . 1 2 . . . . 1 1 . . 3 2 3 1 1 . 2 5 Utility 32 | . 1 . 2 2 2 . . . . . . . . . . 2 . 1 2 3 4 . 5 . 3 5 Weapon 87 | . 2 . 2 8 30 7 3 2 . . . 1 . 3 . 5 . 1 . 2 5 3 6 . 5 2 Tool/Special 1 | . . . . . . . . . . . . . . . . . . . . . . 1 . . . . Average Slot Usage (%) 57 | . 89 100 91 96 64 54 54 53 52 52 52 52 52 52 52 51 56 57 50 47 51 51 50 55 55 55 Engine 2 | . 13 14 9 8 6 5 3 . . . . . . . . . . . 1 . . . . . . . Reactor 3 | . . . . . . . . . 6 6 5 5 5 5 5 5 5 5 4 4 4 4 4 6 3 3 Treads 5 | . 23 28 30 32 15 2 6 6 6 6 3 . . . 1 1 . . . 1 . . . . . . Leg 2 | . 4 . . . . 3 . . . . 1 5 5 5 3 1 9 10 4 . 2 3 3 . 3 3 Device 16 | . . . . 6 12 16 18 13 13 12 22 18 17 18 17 24 25 24 21 18 17 16 17 26 19 19 Storage 5 | . 14 14 9 9 9 6 6 6 6 6 5 5 5 5 5 5 5 5 4 4 4 4 4 4 4 3 Processor 6 | . 5 14 14 9 . 5 6 6 6 6 5 5 5 5 5 5 5 5 4 8 11 13 12 8 15 15 Protection 1 | . . . . 2 . . 1 6 5 6 . 4 5 3 4 1 . 1 1 . . . . . . . Energy Cannon 3 | . . . . . 2 5 4 6 6 6 5 5 5 5 5 . . . . . 6 4 4 4 . . Ballistic Gun 2 | . 26 14 26 21 7 . . . . . . . . . . . . . . . . . . . . . Ballistic Cannon 2 | . . . . . 1 3 3 . . . . . . . . 4 5 5 4 4 1 3 2 . 5 7 Peak Build Rating 264 | . 8 8 19 29 41 86 88 106 108 114 117 121 121 125 125 141 150 150 154 168 185 201 248 261 263 264 Average Rating 121 | . 6 8 13 23 32 73 82 88 107 106 113 114 119 118 119 132 142 145 142 147 178 192 214 247 255 257 On Entrance 112 | 6 6 8 8 19 28 39 77 88 106 106 114 110 121 119 123 118 137 146 148 124 159 183 189 224 261 261 Avg Prop Armor Cover (%) 2 | . . . . . . . . . . . . . . . . . 3 2 2 . . . . . . . Naked Turns 11 | . . . . . . . . . . . . . . . . . . . . . . . . . . 11 Heaviest Build 206 | 10 48 48 54 58 60 129 125 125 125 126 123 128 128 128 146 155 159 159 170 183 181 192 206 139 150 158 Greatest Support 300 | 20 40 40 80 80 96 100 89 89 80 80 121 150 150 150 193 193 145 125 147 149 211 300 240 240 240 204 Greatest Overweight (x) 5 | . 1 1 . 1 5 2 1 1 1 1 1 1 . . . 1 1 1 1 3 2 . . . . . Average Overweight (x) . | . . 1 . . . . 1 1 1 1 1 . . . . . 1 1 1 1 . . . . . . Largest Inventory Capacity 25 | . 20 20 20 20 20 25 25 25 25 25 25 25 25 25 25 25 25 25 25 25 25 25 25 25 25 25 Average Capacity 23 | . 16 20 20 20 20 22 25 25 25 25 25 25 25 25 25 25 25 25 25 25 25 25 25 25 25 24 Most Carried 25 | . 10 10 20 20 20 25 25 25 25 25 24 25 25 25 25 25 25 25 25 25 25 25 25 25 25 25 Average Carried 22 | . 8 10 16 19 12 21 24 24 24 24 23 24 25 24 24 24 24 24 24 24 24 24 24 21 24 23 Final Capacity 25 | 8 20 20 20 20 20 25 25 25 25 25 25 25 25 25 25 25 25 25 25 25 25 25 25 25 25 5 Final Carried 25 | 6 10 10 20 20 7 25 25 25 25 25 23 25 25 25 25 24 25 25 23 25 25 24 24 25 24 5 Scrap Engine Consumption 335 | . . . . . 79 44 30 6 . 7 3 2 . 1 5 10 1 3 16 30 26 15 34 7 13 3 Constructs Created 4 | . . . . . 4 . . . . . . . . . . . . . . . . . . . . . Constructs Modified 132 | . . . . . 30 21 10 4 . . 2 1 . . 2 4 . 1 7 13 11 7 12 1 5 1 Class Distribution -------------------- 65% | Construct 12% | Commander-Construct 8% | Scavenger-Construct 5% | Scavenger-Gunner 4% | Mutant Dominant Class ---------------- Mutant | -10/Materials Mutant | -10/Subcaves Gunner | -8/Materials Gunner | -8/Storage Construct | -8/Recycling Construct | -6/Factory Commander-Construct | -6/Extension Construct | -6/Cetus Commander-Construct | -6/Archives Commander-Construct | -6/Hub_04(d) Construct | -5/Factory Construct | -5/Upper Caves Construct | -5/Upper Caves Construct | -5/Zhirov Construct | -4/Proximity Caves Construct | -4/Factory Construct | -4/Upper Caves Construct | -4/Upper Caves Construct | -3/Research Construct | -3/Testing Construct | -2/Research Construct | -2/Quarantine Construct | -2/Protoforge Infiltrator-Construct | -1/Access Scavenger-Construct | -1/Command Scavenger-Construct | -1/Access_0 Resources | -11 -10 -10 -8 -8 -8 -6 -6 -6 -6 -6 -5 -5 -5 -5 -4 -4 -4 -4 -3 -3 -2 -2 -2 -1 -1 -1 ----------- Run | Yrd Mat Sub Mat Sto Rec Fac Ext Cet Arc Hub Fac Upp Upp Zhi Pro Fac Upp Upp Res Tes Res Qua Frg Acc Com Ac0 Matter Collected 14299 | 200 143 . 503 850 436 606 225 20 30 79 60 100 70 . 250 190 180 210 70 431 410 1227 3486 120 2262 2141 Remotely 1005 | . . . . . . . . . . . . . . . . . . . . . . . . . 545 460 Salvage Created 34751 | . 445 . 707 1476 469 2531 1453 560 421 988 191 1124 661 . 1214 434 544 939 284 1595 1374 4185 7944 354 2597 2261 Parts 1476 | . 35 . 42 86 26 96 49 17 19 38 7 25 19 . 29 24 22 39 18 110 61 188 285 14 95 132 Haulers Intercepted 10 | . 1 . 1 6 . . . . . . . . . . . . . . . . 1 1 . . . . Recyclers Shooed 4 | . . . . 2 . . . . . 1 . . . . . . . . . . . 1 . . . . Parts Field Recycled . | . . . . . . . . . . . . . . . . . . . . . . . . . . . Retrieved Matter . | . . . . . . . . . . . . . . . . . . . . . . . . . . . Parts Self-Destructed 143 | . . 5 . . . . . . . . . 25 20 . 33 . 25 35 . . . . . . . . Prevented . | . . . . . . . . . . . . . . . . . . . . . . . . . . . Parts Restored 2 | . . . . . . . . . . . . . . . . . . . . . . . 2 . . . Faulty 2 | . . . . . . . . . . . . . . . . . . . . . . . 2 . . . Kills | -11 -10 -10 -8 -8 -8 -6 -6 -6 -6 -6 -5 -5 -5 -5 -4 -4 -4 -4 -3 -3 -2 -2 -2 -1 -1 -1 ------- Run | Yrd Mat Sub Mat Sto Rec Fac Ext Cet Arc Hub Fac Upp Upp Zhi Pro Fac Upp Upp Res Tes Res Qua Frg Acc Com Ac0 Combat Hostiles Destroyed 427 | . 15 . 14 22 10 39 18 6 4 16 2 17 13 . 19 7 8 13 1 18 15 39 84 3 22 22 Guns 61 | . 15 . 14 22 10 . . . . . . . . . . . . . . . . . . . . . Cannons 325 | . . . . . . 31 9 4 4 16 2 16 12 . 13 7 8 13 1 18 15 39 70 3 22 22 AOE 1 | . . . . . . . . . . . . . . . . . . . . . . . 1 . . . Classes Destroyed 29 | . 4 . 6 . 4 1 2 . . 1 . . . . . . . . . . . 3 7 1 . . Worker 12 | . . . . . 1 3 1 . . . . . . . . . . . . 1 1 3 2 . . . Builder 19 | . . . 1 . . 2 3 . . . . . . . . . . . . 5 1 6 1 . . . Hauler 10 | . 1 . 1 6 . . . . . . . . . . . . . . . . 1 1 . . . . Recycler 9 | . . . 1 1 . 1 . . . . . . . . . . . . 1 . . 5 . . . . Carrier 3 | . . . . . . . . . . . . . . . . . . . . . . . 3 . . . Mechanic 1 | . . . . . . . . . . . . . . . . . . . . . . 1 . . . . Operator 11 | . 1 . . . . . . . 3 . 1 . . . . . . . 2 1 . 2 1 . . . Drone 2 | . . . . . . . . . . . . . . . . . . . . . . . 2 . . . Watcher 25 | . . . 1 . . 1 3 2 . 1 2 . . . . . . . . 2 . 2 6 2 3 . Swarmer 31 | . 8 . 6 . . . . . . . . 1 5 . 3 . . . . . . 4 . . 4 . Saboteur 1 | . . . . . . . . . . . . . . . . . . . . . . . 1 . . . Grunt 129 | . 7 . 5 13 . 15 5 . . 9 . 12 2 . 8 . 3 10 . 2 2 23 13 . . . Brawler 13 | . . . 1 1 1 1 . . . . . 3 2 . . . . . . . . 1 3 . . . Duelist 7 | . . . . . . . . . . . . . 1 . 1 . . . . . . 1 4 . . . Protector 7 | . . . . . 1 . . . . . . . . . . . . . . . . 2 4 . . . Researcher 6 | . . . . . . . . . . . . . . . . . . . . . . 3 3 . . . Sentry 49 | . . . 1 8 1 3 8 . 4 . . . 1 . . 1 1 1 . . 6 . 13 1 . . Specialist 9 | . . . . . . . . . . 3 . . . . . . . . . . . . 3 . 3 . Hunter 32 | . . . 1 . . 10 2 . . . . 2 2 . 2 2 2 . . 5 . . 3 . 1 . Programmer 60 | . . . . . 1 8 . . . . 2 . . . 4 4 2 2 1 11 6 6 8 . 5 . Heavy 5 | . . . . . . 2 . . . 2 . . . . . . . . . . . . . . 1 . Q-Series 6 | . . . . . . . . . . . . . . . . . . . . . . 2 4 . . . Behemoth 6 | . . . . . . . 2 . . . . . . . 1 . . . . . 1 . . . 2 . Cetus Guard 6 | . . . . . . . . 6 . . . . . . . . . . . . . . . . . . M Guard 2 | . . . . . . . . . . . . . . . . . . . . . . . . . 2 . Enhanced Grunt 14 | . . . . . . . . . . . . . . . . . . . . . . . . . . 14 Enhanced Hunter 4 | . . . . . . . . . . . . . . . . . . . . . . . . . . 4 Lightning 2 | . . . . . . . . . . 2 . . . . . . . . . . . . . . . . Hotshot 2 | . . . . . . . . . . . . . . . . . . . . . . . 2 . . . Decapitator 10 | . . . . . . . . . . . . . . . . . . . . . . . 10 . . . Immortal 7 | . . . . . . . . . . . . . . . . . . . . . . . 7 . . . Overlord 1 | . . . . . . . . . . . . . . . . . . . . . . . 1 . . . Combat Programmer 2 | . . . . . . . . . . . . . . . . . . . . . . . . . 2 . Striker 1 | . . . . . . . . . . . . . . . . . . . . . . . 1 . . . Executioner 2 | . . . . . . . . . . . . . . . . . . . . . . . . 2 . . Alpha 7 4 | . . . . . . . . . . . . . . . . . . . . . . . 4 . . . Subdweller 6 | . . . . . 6 . . . . . . . . . . . . . . . . . . . . . Decomposer 1 | . . . . . . . . . . . . . . . . . . 1 . . . . . . . . Tinkerer 1 | . . . . . . . . . . . . . . . . . . . . . . . 1 . . . Savage 1 | . . . . . . . . 1 . . . . . . . . . . . . . . . . . . Butcher 2 | . . . . . . . 2 . . . . . . . . . . . . . . . . . . . Guerrilla 1 | . . . . . . . 1 . . . . . . . . . . . . . . . . . . . Best Kill Streak 24 | . 6 . 5 9 3 6 9 4 7 5 2 6 7 . 4 3 3 4 1 9 8 24 13 3 6 8 Combat Bots Only 15 | . 6 . 3 9 3 5 4 3 4 5 2 6 7 . 4 3 3 4 1 5 6 15 11 2 4 8 Max Kills in Single Turn 3 | . 1 . 2 1 2 2 1 1 1 2 1 2 2 . 2 1 1 1 1 2 2 3 2 1 1 2 Gunslinging . | . . . . . . . . . . . . . . . . . . . . . . . . . . . Exploded 1 | . . . . . . . . . . . . . . . . . . . . . . . 1 . . . Melee . | . . . . . . . . . . . . . . . . . . . . . . . . . . . Uniques/NPCs Destroyed 7 | . . . . . . . . . . . . . . . . . . . . . . . 1 . 2 4 Superfortress (-2/Protoforge) MAIN.C Shell (-1/Command) MAIN.C (-1/Command) A8 (-1/Access_0) A6 (-1/Access_0) A5 (-1/Access_0) Architect (-1/Access_0) Combat | -11 -10 -10 -8 -8 -8 -6 -6 -6 -6 -6 -5 -5 -5 -5 -4 -4 -4 -4 -3 -3 -2 -2 -2 -1 -1 -1 -------- Run | Yrd Mat Sub Mat Sto Rec Fac Ext Cet Arc Hub Fac Upp Upp Zhi Pro Fac Upp Upp Res Tes Res Qua Frg Acc Com Ac0 Hostile Shots Fired 2157 | . 77 . 43 58 25 296 144 8 10 83 6 35 16 . 58 22 32 24 10 119 40 194 531 6 61 259 Missed 843 | . 27 . 12 16 6 88 67 1 5 48 4 13 10 . 30 10 20 9 4 39 14 75 217 2 11 115 Hits 1314 | . 50 . 31 42 19 208 77 7 5 35 2 22 6 . 28 12 12 15 6 80 26 119 314 4 50 144 Melee 13 | . . . . . . . . . . . . . . . . . . . . . . 4 9 . . . Projectile 1301 | . 50 . 31 42 19 208 77 7 5 35 2 22 6 . 28 12 12 15 6 80 26 115 305 4 50 144 AOE 22 | . . . . . . . . . . . . . . . . . . . 2 . . . 5 . 15 . Critical Strikes 112 | . 1 . 1 . 1 7 1 3 1 2 . 1 . . . 1 3 2 . 5 . 6 65 . 4 8 Actively Blocked 2 | . . . . . . . . . . . . . . . . . . . . . . . . . 2 . Part Disruptions 1 | . . . . . . . . . . . . . . . . . . . . . . . 1 . . . Damage Taken 21024 | . 529 . 395 756 374 3338 854 169 115 767 9 397 94 . 321 107 70 177 227 780 256 1664 6485 90 1014 2036 Core 1978 | . 126 . 29 117 24 266 119 12 . 88 . 33 . . 4 15 8 14 . 14 15 172 458 . 83 381 Absorbed by Shields 7227 | . . . . . . 409 15 86 . . . . . . 79 7 76 145 43 451 244 1205 1433 24 1033 1977 Ignored by Resistances 1713 | . . . . . . . . . . . 31 10 21 . 164 133 76 . . 304 148 88 304 22 412 . Regen/Repaired (Parts) 9736 | . . . . . 15 1616 835 87 23 30 453 203 . 18 152 72 . 17 65 792 319 596 2266 543 1493 141 Core Remaining (%) 74 | 100 . 49 . . 69 . . . . 42 . . . . 96 . . 96 . 98 . . 49 . . . Volleys Fired 1145 | . 64 . 37 64 29 147 45 16 15 31 10 22 23 . 37 17 19 25 9 49 30 85 208 17 60 86 Largest 3 | . 2 . 3 3 3 1 1 1 1 1 1 1 1 . 1 1 1 1 1 1 1 1 2 1 1 1 Hottest 558 | . 60 . 69 109 109 90 63 189 63 189 63 63 63 . 63 84 84 84 84 84 120 120 558 558 558 558 Shots Fired 1457 | . 125 . 109 190 80 148 46 16 15 31 10 22 23 . 37 17 19 25 9 49 30 85 209 17 60 85 Gun 510 | . 125 . 109 190 76 2 . . . . . . . . . . . . . . . . . 8 . . Cannon 946 | . . . . . 4 146 46 16 15 31 10 22 23 . 37 17 19 25 9 49 30 85 209 9 59 85 Launcher . | . . . . . . . . . . . . . . . . . . . . . . . . . . . Special 1 | . . . . . . . . . . . . . . . . . . . . . . . . . 1 . Kinetic 922 | . 101 . 109 164 53 69 1 . . . . . . . . 17 19 25 9 49 21 74 75 . 51 85 Thermal 369 | . 24 . . 26 27 62 7 16 15 31 10 22 23 . 37 . . . . . 9 11 24 17 8 . Explosive . | . . . . . . . . . . . . . . . . . . . . . . . . . . . Electromagnetic 97 | . . . . . . 17 38 . . . . . . . . . . . . . . . 42 . . . Entropic 68 | . . . . . . . . . . . . . . . . . . . . . . . 68 . . . Robot Hit Streak 59 | . 12 . 11 12 14 10 11 8 9 9 6 7 17 . 6 4 4 9 5 23 22 24 52 20 42 59 Robot Miss Streak 22 | . 3 . 2 5 2 11 8 8 5 22 7 6 8 . 8 7 9 8 10 7 3 4 10 . 1 2 Penetration Max 2 | . . . . . . . . . . . . . . . . . . . . . . 2 1 1 1 1 Secondary Targets 4 | . 1 . . 2 1 . . . . . . . . . . . . . . . . . . . . . Max Gunslinging Chain 1 | . 1 . . 1 1 . . . . . . . . . . . . . . . . . . . . . Shots Hit Robots 1122 | . 81 . 75 127 52 118 43 15 14 24 7 21 17 . 29 11 15 15 6 40 20 71 185 5 49 82 Core Hits 1080 | . 34 . 33 55 16 124 68 27 18 37 8 39 22 . 36 12 14 26 7 56 27 97 212 4 35 73 Critical Kills 3 | . . . 1 . . . . . . . . . . . . . . . . . . . 2 . . . Critical Parts Destroyed 6 | . . . . 1 . . . . . . . . . . . . . . . . . . 2 1 1 1 Critical Strikes 13 | . . . 1 2 1 . . . . . . . . . . . . . . . . . 6 1 1 1 Burn 2 | . . . . 1 1 . . . . . . . . . . . . . . . . . . . . . Meltdown 1 | . . . . . . . . . . . . . . . . . . . . . . . 1 . . . Destroy 10 | . . . 1 1 . . . . . . . . . . . . . . . . . . 5 1 1 1 Melee Attacks 3 | . 1 . . 1 . 1 . . . . . . . . . . . . . . . . . . . . Impact 3 | . 1 . . 1 . 1 . . . . . . . . . . . . . . . . . . . . Slashing . | . . . . . . . . . . . . . . . . . . . . . . . . . . . Piercing . | . . . . . . . . . . . . . . . . . . . . . . . . . . . Sneak Attacks . | . . . . . . . . . . . . . . . . . . . . . . . . . . . Combat Hostiles . | . . . . . . . . . . . . . . . . . . . . . . . . . . . Follow-up Attacks . | . . . . . . . . . . . . . . . . . . . . . . . . . . . Damage Inflicted 121452 | . 665 . 987 2088 922 5416 3203 1789 950 2639 657 2057 1181 . 2680 1071 1597 2077 656 6882 4494 10378 34449 1461 12312 20841 Guns 4662 | . 665 . 987 2088 922 . . . . . . . . . . . . . . . . . . . . . Cannons 116184 | . . . . . . 5416 3165 1789 950 2639 657 2057 1181 . 2680 1071 1597 2077 656 6882 4384 10255 34114 1461 12312 20841 Explosions 606 | . . . . . . . 38 . . . . . . . . . . . . . 110 123 335 . . . Melee . | . . . . . . . . . . . . . . . . . . . . . . . . . . . Ramming . | . . . . . . . . . . . . . . . . . . . . . . . . . . . Kinetic 76728 | . 556 . 987 1718 494 2480 . . . . . . . . . 1071 1597 2077 656 6882 4384 10168 11254 . 11563 20841 Thermal 20131 | . 109 . . 370 428 2007 385 1789 950 2639 657 2057 1181 . 2680 . . . . . 110 120 2439 1461 749 . Explosive 90 | . . . . . . . . . . . . . . . . . . . . . . 90 . . . . Electromagnetic 9802 | . . . . . . 929 2818 . . . . . . . . . . . . . . . 6055 . . . Impact . | . . . . . . . . . . . . . . . . . . . . . . . . . . . Slashing . | . . . . . . . . . . . . . . . . . . . . . . . . . . . Piercing . | . . . . . . . . . . . . . . . . . . . . . . . . . . . Entropic 14701 | . . . . . . . . . . . . . . . . . . . . . . . 14701 . . . Highest Corruption 8 | . . . . 4 4 3 3 3 3 3 . . . . . . . . . 7 . 2 8 . 1 1 Average Corruption 2 | . . . . 3 4 1 3 3 2 1 . . . . . . . . . 6 . 1 2 . 1 1 Corruption Purged 14 | . . . . . . . . . 3 . . . . . . . . . . . . . 10 . 1 . Corruption Blocked . | . . . . . . . . . . . . . . . . . . . . . . . . . . . Effects 222 | . . . . 16 76 13 35 6 2 6 . . . . . . . . . 19 . 5 30 . 6 8 Message Errors 53 | . . . . 5 22 2 10 1 1 1 . . . . . . . . . 5 . 1 4 . . 1 Matter Fused 51 | . . . . 1 15 6 12 . . 1 . . . . . . . . . 5 . . 9 . 1 1 Heat Flow Errors 35 | . . . . 2 11 1 4 3 . 1 . . . . . . . . . 3 . . 5 . 3 2 Energy Discharges 27 | . . . . 1 10 . 3 . 1 . . . . . . . . . . 2 . 2 4 . 1 3 Parts Rejected 2 | . . . . 1 . . . . . . . . . . . . . . . . . . 1 . . . Parts Fused 2 | . . . . . 1 . 1 . . . . . . . . . . . . . . . . . . . Data Loss (minor) 30 | . . . . 4 10 2 2 1 . 3 . . . . . . . . . 3 . 1 3 . 1 . Data Loss (major) 9 | . . . . 2 3 1 . 1 . . . . . . . . . . . 1 . . 1 . . . Misfires 5 | . . . . . 2 1 1 . . . . . . . . . . . . . . . 1 . . . Alerts 4 | . . . . . 1 . 2 . . . . . . . . . . . . . . 1 . . . . Weapon Failures 4 | . . . . . 1 . . . . . . . . . . . . . . . . . 2 . . 1 Overload Shots 7 | . . . . . . . . 3 . 2 . . . . . . . . . . . . . . 2 . Overflow Damage 4095 | . . . . . . 33 . . 8 29 19 . 34 . 4 63 59 22 35 364 302 434 823 155 821 890 Projectiles 4068 | . . . . . . 33 . . 8 29 19 . 34 . 4 63 59 22 35 364 302 434 796 155 821 890 Explosions 27 | . . . . . . . . . . . . . . . . . . . . . . . 27 . . . Melee . | . . . . . . . . . . . . . . . . . . . . . . . . . . . Knockbacks 396 | . . . . . . 29 . . . . . . . . . 3 13 12 7 63 14 84 41 . 17 113 Impact . | . . . . . . . . . . . . . . . . . . . . . . . . . . . Kinetic 372 | . . . . . . 24 . . . . . . . . . 3 13 12 7 60 13 73 39 . 16 112 Secondary 24 | . . . . . . 5 . . . . . . . . . . . . . 3 1 11 2 . 1 1 Self-Inflicted Damage 268 | . . . . . . 122 56 . . 90 . . . . . . . . . . . . . . . . Shots 4 | . . . . . . 2 1 . . 1 . . . . . . . . . . . . . . . . Rammed . | . . . . . . . . . . . . . . . . . . . . . . . . . . . Targets Rammed . | . . . . . . . . . . . . . . . . . . . . . . . . . . . Kicked . | . . . . . . . . . . . . . . . . . . . . . . . . . . . Crushed . | . . . . . . . . . . . . . . . . . . . . . . . . . . . Highest Temperature 790 | . 108 . 64 200 246 165 224 261 54 255 64 223 114 . 40 96 52 44 44 218 108 46 790 203 203 183 Average Temperature 62 | . 37 . 18 46 64 29 47 116 28 71 28 76 46 . 22 41 28 26 32 52 37 18 68 111 90 122 Received Heat Transfer 6164 | . 222 . 117 306 99 566 246 . 36 126 . 141 9 . 34 9 9 61 . 5 41 195 3686 . 256 . Thermoelectric Energy+ 29412 | . . . . . . . . . . . . . . . . . . . . . . . 2196 1530 10641 15045 Effects 3 | . . . . . . . . . . . . . . . . . . . . . . . 3 . . . Shutdowns 1 | . . . . . . . . . . . . . . . . . . . . . . . 1 . . . Energy Bleed 1 | . . . . . . . . . . . . . . . . . . . . . . . 1 . . . Damage (major) 1 | . . . . . . . . . . . . . . . . . . . . . . . 1 . . . Siege Activations . | . . . . . . . . . . . . . . . . . . . . . . . . . . . Martial Activations . | . . . . . . . . . . . . . . . . . . . . . . . . . . . Shielding Activations . | . . . . . . . . . . . . . . . . . . . . . . . . . . . Robots Disrupted 4 | . . . . . . . . . . . . . . . . . . . . . . . 4 . . . Combat Hostiles 1 | . . . . . . . . . . . . . . . . . . . . . . . 1 . . . Robots Corrupted 25 | . . . . . . 3 8 . . . . . . . . . . . . . . . 14 . . . Combat Hostiles 23 | . . . . . . 3 8 . . . . . . . . . . . . . . . 12 . . . Parts Fried 94 | . . . . . . 10 24 . . . . . . . . . . . . . . 4 55 . 1 . Impact Corruptions 3 | . . . . . . . . . . . . . . . . . . . . . . 2 1 . . . Robots Melted 18 | . . . . . . 5 1 2 . . . 2 1 . 6 . . . . . . . 1 . . . Combat Hostiles 17 | . . . . . . 5 1 2 . . . 1 1 . 6 . . . . . . . 1 . . . Parts Melted 118 | . . . . 1 5 30 2 7 6 14 5 7 7 . 27 . . . . . . . 2 3 2 . Heat Transferred 33855 | . 250 . . 740 851 5600 700 3426 1900 4764 1200 4150 2450 . 5150 . . . . . 50 124 1500 650 350 . Parts Sabotaged . | . . . . . . . . . . . . . . . . . . . . . . . . . . . Parts Stolen . | . . . . . . . . . . . . . . . . . . . . . . . . . . . Parts Stripped . | . . . . . . . . . . . . . . . . . . . . . . . . . . . Power Chain Reactions 7 | . . . . . . . . . . . . . . . . . . . . . 1 2 4 . . . Alert | -11 -10 -10 -8 -8 -8 -6 -6 -6 -6 -6 -5 -5 -5 -5 -4 -4 -4 -4 -3 -3 -2 -2 -2 -1 -1 -1 ------- Run | Yrd Mat Sub Mat Sto Rec Fac Ext Cet Arc Hub Fac Upp Upp Zhi Pro Fac Upp Upp Res Tes Res Qua Frg Acc Com Ac0 Maximum Alert Level 5 | . 1 . . 1 . 3 2 2 1 4 2 . . . . 1 . . . 1 2 5 5 5 4 . Low Security (%) 50 | . 92 . 100 9 100 60 8 . 84 5 . . . . . 93 . . 100 65 48 13 . . . . Level 1 20 | . 7 . . 90 . 22 63 70 15 23 43 . . . . 6 . . . 34 27 23 . . . . Level 2 9 | . . . . . . 14 28 29 . 46 56 . . . . . . . . . 24 18 3 . . . Level 3 3 | . . . . . . 2 . . . 17 . . . . . . . . . . . 25 17 . . . Level 4 10 | . . . . . . . . . . 6 . . . . . . . . . . . 10 20 . 99 . Level 5 5 | . . . . . . . . . . . . . . . . . . . . . . . 49 89 . . High Security 1 | . . . . . . . . . . . . . . . . . . . . . . 7 7 10 . . Max Security . | . . . . . . . . . . . . . . . . . . . . . . . . . . . Peak Influence 2855 | . 230 . 195 321 115 732 620 460 394 1232 600 . . . . 212 . . 94 368 475 1792 2855 1724 1315 . Initial 1712 | . . . . 72 115 358 358 312 164 . 600 . . . . 37 . . 63 . 197 76 1100 1712 1103 . Average 345 | . 70 . 65 246 10 211 367 371 62 561 439 . . . . 61 . . 17 163 242 707 1635 1676 1229 . Influence Increases 18279 | . 448 . 373 710 266 1626 1092 298 260 1722 97 436 391 . 485 526 190 290 169 873 765 2164 2875 202 601 1420 Destroy 0b10 Robot/C 8580 | . 300 . 280 440 60 780 540 160 80 660 40 340 300 . 420 140 160 260 20 360 300 800 1700 60 380 . Destroy 0b10 Robot/NC 545 | . 10 . 20 35 10 35 60 10 15 30 15 . . . . . . . 15 55 15 110 80 10 20 . Destroy Leader 1420 | . 72 . 54 142 . 222 56 . . 148 14 30 20 . 50 40 30 30 10 64 92 96 182 24 44 . Allied During Kill 1253 | . . . . . . . 307 67 95 692 . 36 41 . 15 . . . . . . . . . . . Successful Hack 473 | . 5 . 17 25 15 30 52 . . . . . . . . 55 . . 24 37 118 60 10 21 4 . Select Force Hacks 240 | . 60 . . . 180 . . . . . . . . . . . . . . . . . . . . . Disable Machine 1020 | . . . . 30 . 90 30 15 60 60 . . . . . 105 . . . 90 . 165 270 . 30 75 Anti-Garrison Action 150 | . . . . . . . . . . . . . . . . . . . . . . . 150 . . . Destroy Structure 3828 | . 1 . 2 8 1 59 32 46 10 132 28 . . . . 186 . . 100 252 240 798 393 87 108 1345 Advance Influence 350 | . . . . . . 350 . . . . . . . . . . . . . . . . . . . . Partial Spotted 15 | . . . . . . . . . . . . . . . . . . . . . . . . . 15 . Lose Combat Pursuer 405 | . . . . 30 . 60 15 . . . . 30 30 . . . . . . 15 . 135 90 . . . Influence Decreases 16961 | . 447 1 202 583 543 915 1266 446 670 496 968 577 514 91 425 396 380 196 263 522 980 508 1904 1333 731 1604 Entered New Map 6534 | . . 1 . 99 183 13 374 246 246 . 626 132 42 91 . 23 71 . 31 . 154 60 784 1143 621 1594 Time Decay 8947 | . 427 . 192 474 360 722 592 180 424 416 342 445 472 . 405 373 309 196 232 512 526 428 620 190 110 . Search Patrol Dispatched 100 | . . . . . . 100 . . . . . . . . . . . . . . . . . . . . Lost Part 210 | . 20 . 10 10 . 80 . . . . . . . . . . . . . 10 . 20 50 . . 10 Lost Ally 420 | . . . . . . . 300 20 . 80 . . . . 20 . . . . . . . . . . . Purge Threat 750 | . . . . . . . . . . . . . . . . . . . . . 300 . 450 . . . Squads Dispatched 85 | . 4 . 1 4 . 14 1 . . 9 1 . . . . 3 . . 3 6 3 11 20 4 1 . Investigation 9 | . 2 . . 1 . 2 1 . . 1 . . . . . 1 . . . . . . 1 . . . Extermination 30 | . . . . . . 7 . . . 2 1 . . . . 2 . . . 5 3 3 4 2 1 . Reinforcement 21 | . 2 . 1 3 . 4 . . . 4 . . . . . . . . 3 1 . 3 . . . . Assault 24 | . . . . . . 1 . . . 1 . . . . . . . . . . . 5 15 2 . . Garrison 1 | . . . . . . . . . . 1 . . . . . . . . . . . . . . . . Intercept . | . . . . . . . . . . . . . . . . . . . . . . . . . . . Searches Triggered 1 | . . . . . . 1 . . . . . . . . . . . . . . . . . . . . Construction Impeded . | . . . . . . . . . . . . . . . . . . . . . . . . . . . Haulers Reinforced 5 | . . . . . . 1 . . . 1 . . . . . . . . 2 1 . . . . . . Active Scanning Responses . | . . . . . . . . . . . . . . . . . . . . . . . . . . . Cargo Convoy Interrupts 1 | . . . . . . . . . . . 1 . . . . . . . . . . . . . . . Stealth | -11 -10 -10 -8 -8 -8 -6 -6 -6 -6 -6 -5 -5 -5 -5 -4 -4 -4 -4 -3 -3 -2 -2 -2 -1 -1 -1 --------- Run | Yrd Mat Sub Mat Sto Rec Fac Ext Cet Arc Hub Fac Upp Upp Zhi Pro Fac Upp Upp Res Tes Res Qua Frg Acc Com Ac0 Distress Signals 36 | . 2 . 1 1 2 . 1 2 . 3 . . . . . . . . 6 1 1 2 1 . 13 . Communications Jammed 60 | . . . . . . . . . . . . . . . . . . . . 27 . 18 10 3 2 . Distress Signals 54 | . . . . . . . . . . . . . . . . . . . . 27 . 18 4 3 2 . Times Spotted 585 | . 24 . 18 34 8 47 28 10 9 37 4 19 15 . 18 7 7 11 5 24 16 62 101 4 23 54 Peak Tracking Total 11 | . 7 . 5 9 3 5 5 5 1 6 2 7 7 . 4 3 3 4 2 7 3 10 11 1 6 5 Tactical Retreats 21 | . . . . 2 2 3 1 . . . . 1 1 . . . . . . 1 . 3 6 . 1 . ECM-based Alert Blocks 1 | . . . . . . . . . . . . . . . . . . . . . . . 1 . . . Traps | -11 -10 -10 -8 -8 -8 -6 -6 -6 -6 -6 -5 -5 -5 -5 -4 -4 -4 -4 -3 -3 -2 -2 -2 -1 -1 -1 ------- Run | Yrd Mat Sub Mat Sto Rec Fac Ext Cet Arc Hub Fac Upp Upp Zhi Pro Fac Upp Upp Res Tes Res Qua Frg Acc Com Ac0 Traps Triggered 22 | . . . . 5 . 4 . . . . . . . . . . . . . . 1 3 7 . 2 . Indirectly . | . . . . . . . . . . . . . . . . . . . . . . . . . . . Trap Hack Attempts . | . . . . . . . . . . . . . . . . . . . . . . . . . . . Triggered . | . . . . . . . . . . . . . . . . . . . . . . . . . . . Disarmed . | . . . . . . . . . . . . . . . . . . . . . . . . . . . Reprogrammed . | . . . . . . . . . . . . . . . . . . . . . . . . . . . Reused . | . . . . . . . . . . . . . . . . . . . . . . . . . . . Traps Extracted . | . . . . . . . . . . . . . . . . . . . . . . . . . . . Installed . | . . . . . . . . . . . . . . . . . . . . . . . . . . . Triggered . | . . . . . . . . . . . . . . . . . . . . . . . . . . . Machines | -11 -10 -10 -8 -8 -8 -6 -6 -6 -6 -6 -5 -5 -5 -5 -4 -4 -4 -4 -3 -3 -2 -2 -2 -1 -1 -1 ---------- Run | Yrd Mat Sub Mat Sto Rec Fac Ext Cet Arc Hub Fac Upp Upp Zhi Pro Fac Upp Upp Res Tes Res Qua Frg Acc Com Ac0 Machines Disabled 89 | . . . . 2 . 6 3 1 4 4 . 1 1 . 2 7 . 1 . 10 . 11 29 . 2 5 Max in Single Turn 4 | . . . . 1 . 4 1 1 1 1 . 1 1 . 1 2 . 1 . 1 . 2 3 . 1 1 Garrison Access 4 | . . . . . . . . . . . . . . . . 1 . . 1 . 1 . 1 . . . Network Hub 1 | . . . . . . . . . . 1 . . . . . . . . . . . . . . . . Energy Cycler 1 | . . . . . . . 1 . . . . . . . . . . . . . . . . . . . Machines Repaired . | . . . . . . . . . . . . . . . . . . . . . . . . . . . Machines Dismantled . | . . . . . . . . . . . . . . . . . . . . . . . . . . . Machines Sabotaged . | . . . . . . . . . . . . . . . . . . . . . . . . . . . Overloaded Fab Kills . | . . . . . . . . . . . . . . . . . . . . . . . . . . . Hacking | -11 -10 -10 -8 -8 -8 -6 -6 -6 -6 -6 -5 -5 -5 -5 -4 -4 -4 -4 -3 -3 -2 -2 -2 -1 -1 -1 --------- Run | Yrd Mat Sub Mat Sto Rec Fac Ext Cet Arc Hub Fac Upp Upp Zhi Pro Fac Upp Upp Res Tes Res Qua Frg Acc Com Ac0 Machines Accessed 123 | . 7 . 2 12 13 13 9 1 1 1 2 3 . 4 1 10 . 1 3 6 12 7 7 5 3 . Terminals 78 | . 5 . 2 10 6 7 9 1 . 1 . . . . 1 5 . . 1 5 7 6 6 4 2 . Fabricators 2 | . . . . . . 1 . . . . . . . . . 1 . . . . . . . . . . Repair Stations . | . . . . . . . . . . . . . . . . . . . . . . . . . . . Recycling Units 23 | . 2 . . 2 6 4 . . . . 2 . . . . 3 . . . . 2 . . 1 1 . Scanalyzers 7 | . . . . . . 1 . . . . . . . . . . . . 2 1 2 1 . . . . Garrison Access 3 | . . . . . . . . . . . . . . . . 1 . . . . 1 . 1 . . . Total Hacks 305 | . 14 . 3 30 34 21 17 3 9 2 5 6 . 17 4 26 . 1 10 15 39 16 19 9 5 . Successful 158 | . 10 . 3 10 21 9 10 . 9 1 2 6 . 17 4 11 . 1 2 5 14 6 13 3 1 . Failed 146 | . 4 . . 20 13 12 7 3 . 1 3 . . . . 15 . . 8 9 25 10 6 6 4 . Catastrophic 35 | . . . . 3 1 . 3 1 . . . . . . . 6 . . 2 2 4 4 3 4 2 . Database Lockouts 1 | . . . . . . . . . . . . . . . . . . . . 1 . . . . . . Manual 154 | . 14 . 3 17 26 2 11 1 18 2 . . . . . 14 . . 1 10 12 10 10 1 2 . Terminals 193 | . 12 . 3 24 18 10 17 3 . 2 . . . . 4 19 . . 1 12 25 15 17 8 3 . Fabricators 5 | . . . . . . 3 . . . . . . . . . 2 . . . . . . . . . . Repair Stations . | . . . . . . . . . . . . . . . . . . . . . . . . . . . Recycling Units 45 | . 2 . . 6 14 6 . . . . 5 . . . . 4 . . . . 5 . . 1 2 . Scanalyzers 23 | . . . . . . 2 . . . . . . . . . . . . 9 3 8 1 . . . . Garrison Access 4 | . . . . . . . . . . . . . . . . 1 . . . . 1 . 2 . . . Terminal Hacks 84 | . 2 . . 6 4 4 3 . 9 . . 6 . 17 4 4 . 1 . 2 5 1 12 3 1 . Record 28 | . . . . . . . . . 9 . . 4 . 5 4 . . . . . . . 6 . . . Part Schematic 5 | . . . . . 1 . . . . . . . . 4 . . . . . . . . . . . . Robot Analysis 7 | . 1 . . 1 . . . . . . . . . 4 . . . . . 1 . . . . . . Prototype ID Bank 4 | . . . . . . . . . . . . . . 4 . . . . . . . . . . . . Open Door 13 | . . . . 3 . 1 2 . . . . 2 . . . . . 1 . . . . . 3 1 . Branch Access Points 3 | . . . . . . 1 . . . . . . . . . 1 . . . . 1 . . . . . Terminal Index 3 | . . . . 1 1 . . . . . . . . . . 1 . . . . . . . . . . Recycling Unit Index 1 | . 1 . . . . . . . . . . . . . . . . . . . . . . . . . Alert Level 6 | . . . . . . 2 . . . . . . . . . 1 . . . . 1 1 1 . . . Unreport Threat 5 | . . . . . . . . . . . . . . . . . . . . . 2 . 3 . . . Registered Prototypes 1 | . . . . . . . . . . . . . . . . 1 . . . . . . . . . . Zone Layout 5 | . . . . 1 . . 1 . . . . . . . . . . . . 1 1 . 1 . . . Proto ID Catalog 1 | . . . . . . . . . . . . . . . . . . . . . . . 1 . . . Release Object 2 | . . . . . 2 . . . . . . . . . . . . . . . . . . . . . Fabricator Hacks 3 | . . . . . . 2 . . . . . . . . . 1 . . . . . . . . . . Load Schematic 1 | . . . . . . 1 . . . . . . . . . . . . . . . . . . . . Build 2 | . . . . . . 1 . . . . . . . . . 1 . . . . . . . . . . Repair Station Hacks . | . . . . . . . . . . . . . . . . . . . . . . . . . . . Recycling Unit Hacks 12 | . . . . . 4 3 . . . . 2 . . . . 2 . . . . 1 . . . . . Retrieve Components 12 | . . . . . 4 3 . . . . 2 . . . . 2 . . . . 1 . . . . . Scanalyzer 6 | . . . . . . . . . . . . . . . . . . . 2 1 2 1 . . . . Retrieve Study 6 | . . . . . . . . . . . . . . . . . . . 2 1 2 1 . . . . Garrison Access Hacks 2 | . . . . . . . . . . . . . . . . 1 . . . . 1 . . . . . Seal Access 2 | . . . . . . . . . . . . . . . . 1 . . . . 1 . . . . . Unauthorized Hacks 51 | . 8 . 3 4 13 . 7 . . 1 . . . . . 3 . . . 2 5 4 1 . . . Terminals 41 | . 6 . 3 4 5 . 7 . . 1 . . . . . 3 . . . 2 5 4 1 . . . Botnet 12 | . 1 . 1 2 1 . 2 . . . . . . . . 1 . . . 1 1 1 1 . . . Skim 28 | . 5 . 2 2 4 . 5 . . . . . . . . 2 . . . 1 4 3 . . . . Sabotage 1 | . . . . . . . . . . 1 . . . . . . . . . . . . . . . . Fabricators . | . . . . . . . . . . . . . . . . . . . . . . . . . . . Repair Stations . | . . . . . . . . . . . . . . . . . . . . . . . . . . . Recycling Units 10 | . 2 . . . 8 . . . . . . . . . . . . . . . . . . . . . Reject 1 | . . . . . 1 . . . . . . . . . . . . . . . . . . . . . Mask 1 | . . . . . 1 . . . . . . . . . . . . . . . . . . . . . Tunnel 8 | . 2 . . . 6 . . . . . . . . . . . . . . . . . . . . . Scanalyzers . | . . . . . . . . . . . . . . . . . . . . . . . . . . . Garrison Access . | . . . . . . . . . . . . . . . . . . . . . . . . . . . Data Cores Recovered 5 | . . . . . . . . . . . 1 . . . . . . . 1 . . 2 1 . . . Used 1 | . . . . . . . . . . . . . . . . . . . . . . 1 . . . . Hacking Detections 84 | . 5 . 1 7 7 12 7 2 . . 1 . . . 1 8 . . 3 5 11 7 3 2 2 . Full Trace Events 6 | . . . . 2 1 1 1 . . . . . . . . 1 . . . . . . . . . . Feedback Events . | . . . . . . . . . . . . . . . . . . . . . . . . . . . Feedback Blocked . | . . . . . . . . . . . . . . . . . . . . . . . . . . . Robot Schematics Acquired 6 | . . . . . . . . . . . . . . . . . . . . . . 1 5 . . . Robots Built . | . . . . . . . . . . . . . . . . . . . . . . . . . . . Authchips . | . . . . . . . . . . . . . . . . . . . . . . . . . . . Time . | . . . . . . . . . . . . . . . . . . . . . . . . . . . Total Robot Build Rating . | . . . . . . . . . . . . . . . . . . . . . . . . . . . Part Schematics Acquired 16 | . . . . . 1 . . . . . . . . 4 . . . . . . . 1 10 . . . Parts Built 2 | . . . . . . 1 . . . . . . . . . 1 . . . . . . . . . . Authchips . | . . . . . . . . . . . . . . . . . . . . . . . . . . . Time 120 | . . . . . . 51 . . . . . . . . . 69 . . . . . . . . . . Total Part Build Rating 10 | . . . . . . 1 . . . . . . . . . 9 . . . . . . . . . . Part Studies Acquired 6 | . . . . . . . . . . . . . . . . . . . 2 1 2 1 . . . . Parts Repaired . | . . . . . . . . . . . . . . . . . . . . . . . . . . . Time . | . . . . . . . . . . . . . . . . . . . . . . . . . . . Parts Recycled . | . . . . . . . . . . . . . . . . . . . . . . . . . . . Recycled Matter . | . . . . . . . . . . . . . . . . . . . . . . . . . . . Retrieved Matter . | . . . . . . . . . . . . . . . . . . . . . . . . . . . Retrieved Components 33 | . . . . . 8 14 . . . . 3 . . . . 5 . . . . 3 . . . . . Parts Scanalyzed . | . . . . . . . . . . . . . . . . . . . . . . . . . . . Part Schematics Acquired . | . . . . . . . . . . . . . . . . . . . . . . . . . . . Parts Damaged . | . . . . . . . . . . . . . . . . . . . . . . . . . . . Bothacking | -11 -10 -10 -8 -8 -8 -6 -6 -6 -6 -6 -5 -5 -5 -5 -4 -4 -4 -4 -3 -3 -2 -2 -2 -1 -1 -1 ------------ Run | Yrd Mat Sub Mat Sto Rec Fac Ext Cet Arc Hub Fac Upp Upp Zhi Pro Fac Upp Upp Res Tes Res Qua Frg Acc Com Ac0 Used RIF Installer . | . . . . . . . . . . . . . . . . . . . . . . . . . . . Robots Hacked 1 | . . . . . . . . . . . . . . . . . . . . . . . . . 1 . Non-combat . | . . . . . . . . . . . . . . . . . . . . . . . . . . . Combat . | . . . . . . . . . . . . . . . . . . . . . . . . . . . Robot Hacks Applied . | . . . . . . . . . . . . . . . . . . . . . . . . . . . Manual 1 | . . . . . . . . . . . . . . . . . . . . . . . . . 1 . Relay Couplers Released 5 | . . . . . . . . . . . . . . . . . . . 2 . . . 3 . . . Machine Destruction 5 | . . . . . . . . . . . . . . . . . . . 2 . . . 3 . . . Fabnet Peak Effective % . | . . . . . . . . . . . . . . . . . . . . . . . . . . . Robots Rewired 21 | . . . . . . . 17 . . . . 2 2 . . . . . . . . . . . . . Allies Hacked . | . . . . . . . . . . . . . . . . . . . . . . . . . . . Hacks Repelled . | . . . . . . . . . . . . . . . . . . . . . . . . . . . Allies | -11 -10 -10 -8 -8 -8 -6 -6 -6 -6 -6 -5 -5 -5 -5 -4 -4 -4 -4 -3 -3 -2 -2 -2 -1 -1 -1 -------- Run | Yrd Mat Sub Mat Sto Rec Fac Ext Cet Arc Hub Fac Upp Upp Zhi Pro Fac Upp Upp Res Tes Res Qua Frg Acc Com Ac0 Total Allies 32 | . . . . . . . 23 5 . . . 2 2 . . . . . . . . . . . . . Largest Group 13 | . . . . . . . 13 6 6 5 . 2 3 1 1 . . . . . . . . . . . Highest-Rated Group 639 | . . . . . . . 400 639 639 480 . 60 89 29 29 . . . . . . . . . . . Highest-Rated Ally 159 | . . . . . . . 159 159 159 96 . 30 30 29 29 . . . . . . . . . . . Total Orders 12 | . . . . . . . . 2 2 2 . 2 2 . 2 . . . . . . . . . . . STAY 6 | . . . . . . . . 1 1 1 . 1 1 . 1 . . . . . . . . . . . FOLLOW 6 | . . . . . . . . 1 1 1 . 1 1 . 1 . . . . . . . . . . . Ally Attacks 240 | . . . . . . . 94 16 6 93 . . 14 . 17 . . . . . . . . . . . Total Damage 6311 | . . . . . . . 1611 474 125 3691 . . 183 . 227 . . . . . . . . . . . Kills 45 | . . . . . . . 16 2 . 22 . . 3 . 2 . . . . . . . . . . . Allies Corrupted 2 | . . . . . . . . 1 . 1 . . . . . . . . . . . . . . . . Allies Melted . | . . . . . . . . . . . . . . . . . . . . . . . . . . . Intel | -11 -10 -10 -8 -8 -8 -6 -6 -6 -6 -6 -5 -5 -5 -5 -4 -4 -4 -4 -3 -3 -2 -2 -2 -1 -1 -1 ------- Run | Yrd Mat Sub Mat Sto Rec Fac Ext Cet Arc Hub Fac Upp Upp Zhi Pro Fac Upp Upp Res Tes Res Qua Frg Acc Com Ac0 Active Infowar (turns) 23950 | . . . . 1 . 2994 1435 . 2 641 774 1690 1514 364 1270 1169 1400 1892 1042 2076 1341 953 1758 425 1209 . Optics 1 | . . . . 1 . . . . . . . . . . . . . . . . . . . . . . Sensors 20139 | . . . . . . 2940 330 . 2 641 766 1690 1514 364 1270 1142 1393 1883 1042 1926 1316 618 893 402 7 . Traps 8789 | . . . . . . 54 1105 . . . 773 355 . . . 1103 . . 537 2035 1332 306 846 343 . . Cloaking 4808 | . . . . . . . . . . . . . . . . 688 1391 1527 . . 356 . 328 425 93 . Jamming 3288 | . . . . . . . . . . . . . . . . . . 141 . 112 . 738 766 322 1209 . ECM 25 | . . . . . . . . . . . . 2 . . . . . . . . . . 23 . . . Robot Analysis Total 7 | . 1 . . 1 . . . . . . . . . 4 . . . . . 1 . . . . . . Derelict Logs Recovered 10 | . . . . . . . . . . . . 1 2 . 3 . 1 3 . . . . . . . . Drone Launches . | . . . . . . . . . . . . . . . . . . . . . . . . . . . Drone Recoveries . | . . . . . . . . . . . . . . . . . . . . . . . . . . . Exploration | -11 -10 -10 -8 -8 -8 -6 -6 -6 -6 -6 -5 -5 -5 -5 -4 -4 -4 -4 -3 -3 -2 -2 -2 -1 -1 -1 ------------- Run | Yrd Mat Sub Mat Sto Rec Fac Ext Cet Arc Hub Fac Upp Upp Zhi Pro Fac Upp Upp Res Tes Res Qua Frg Acc Com Ac0 Turns Passed 39576 | . 1513 53 581 1212 3492 3969 1879 372 3006 1013 774 2082 1638 366 1410 1207 1479 2043 1042 2076 1462 1130 2275 425 2481 596 Spaces Moved 21554 | 1 464 23 267 562 1267 1656 898 178 126 404 315 894 892 196 926 769 998 1382 609 951 1254 1109 2088 822 1967 536 Core 19 | . . . . . . . . . . . . . . . . . . . . . . . . . . 19 Treads 6170 | . 359 23 267 562 841 742 898 178 126 404 201 . . . 478 362 . . 47 325 357 . . . . . Legs 12872 | 1 105 . . . . 914 . . . . 114 894 892 196 448 251 998 1382 508 312 810 972 1881 . 1677 517 Wheels 572 | . . . . . 416 . . . . . . . . . . 156 . . . . . . . . . . Hover 1776 | . . . . . 10 . . . . . . . . . . . . . 54 169 87 137 207 822 290 . Flight 145 | . . . . . . . . . . . . . . . . . . . . 145 . . . . . . Fastest Speed 42 | 120 120 240 160 160 89 151 164 164 227 227 227 176 176 176 103 103 138 138 122 120 55 55 42 42 42 50 Average Speed 131 | 120 193 240 160 166 140 190 164 166 227 227 227 219 176 176 138 128 138 138 150 190 95 61 55 42 74 78 Slowest Speed 385 | 120 240 240 160 240 210 305 164 227 227 227 238 227 176 176 176 154 163 138 173 385 153 77 57 42 80 80 Overloaded Moves . | . . . . . . . . . . . . . . . . . . . . . . . . . . . Propulsion Burnouts . | . . . . . . . . . . . . . . . . . . . . . . . . . . . Robots Hopped . | . . . . . . . . . . . . . . . . . . . . . . . . . . . Potential Cave-ins 2 | . . . . . . . . . . . . . . . . . . . . . . . 2 . . . Cave-ins Triggered . | . . . . . . . . . . . . . . . . . . . . . . . . . . . Teleports 3 | . . . . . . . . . . . . . . . . . . . . . . . 1 . 1 1 Exploration Rate (%) 57 | 1 73 4 31 87 99 42 87 66 81 33 12 97 98 60 98 16 96 98 14 90 35 83 58 24 47 35 Regions Visited 26 Branch Regions 18 Pre-discovered Areas 15 | . 3 . . . 6 . 1 . . . . . . 3 1 . . 1 . . . . . . . . Known Exits Taken 20 | . . 1 1 . . 1 1 1 1 1 1 1 1 1 1 1 1 1 1 1 1 1 1 . . . Unknown Exits Taken 6 | 1 1 . . 1 1 . . . . . . . . . . . . . . . . . . 1 1 . Scrap Searched 17 | . . . . . . . . . . . . 4 3 . 5 . 3 2 . . . . . . . . Spaces Dug 357 | . 1 . . . 1 21 . . . 7 6 2 5 . 6 38 30 78 17 45 11 37 16 32 4 . Terrain Destroyed 1991 | . 1 . . . 1 58 23 17 9 166 13 16 10 . 20 108 116 143 54 175 116 332 142 46 77 348 Melee 2 | . 1 . . . . 1 . . . . . . . . . . . . . . . . . . . . Projectile 1679 | . . . . . 1 23 4 17 9 27 13 16 10 . 20 92 116 143 54 175 97 277 114 46 77 348 AOE 310 | . . . . . . 34 19 . . 139 . . . . . 16 . . . . 19 55 28 . . . Terrain Rammed . | . . . . . . . . . . . . . . . . . . . . . . . . . . . Walls Destroyed . | . . . . . . . . . . . . . . . . . . . . . . . . . . . Machines Disabled . | . . . . . . . . . . . . . . . . . . . . . . . . . . . Actions | -11 -10 -10 -8 -8 -8 -6 -6 -6 -6 -6 -5 -5 -5 -5 -4 -4 -4 -4 -3 -3 -2 -2 -2 -1 -1 -1 --------- Run | Yrd Mat Sub Mat Sto Rec Fac Ext Cet Arc Hub Fac Upp Upp Zhi Pro Fac Upp Upp Res Tes Res Qua Frg Acc Com Ac0 Total 31530 | . 973 22 359 751 2966 2328 1259 243 2832 471 363 986 936 218 1012 967 1071 1489 732 1165 1485 1466 2968 885 2932 651 Wait 7506 | . 427 . 19 47 1533 384 143 35 2684 26 31 34 8 . 31 146 34 56 90 90 114 219 488 23 831 13 Move 21527 | . 463 22 266 561 1266 1655 897 177 125 403 314 893 891 195 925 768 997 1381 608 950 1253 1108 2086 821 1966 536 Hop . | . . . . . . . . . . . . . . . . . . . . . . . . . . . Pick Up 284 | . 8 . 17 22 48 49 3 6 1 1 . 3 . 5 1 8 1 4 6 15 17 7 31 9 16 6 Fast Attach 88 | . 2 . 3 10 3 14 2 1 2 2 . 2 . 6 . . 1 . . 7 3 5 15 1 8 1 Attach 49 | . 2 . 3 4 2 8 . . . . 2 . . . . 1 . . 1 3 1 . 12 6 3 1 Detach 25 | . . . . 2 8 2 1 . . 1 1 . . . . . . . 1 2 . . 3 . 4 . Swap 376 | . 3 . 7 8 3 31 11 1 2 4 4 10 5 2 17 18 19 19 6 30 36 29 90 3 16 2 Drop 330 | . 3 . 7 32 74 37 5 7 3 3 1 3 . 10 1 9 . 4 11 19 18 13 33 5 26 6 Fire 1145 | . 64 . 37 64 29 147 45 16 15 31 10 22 23 . 37 17 19 25 9 49 30 85 208 17 60 86 Melee 3 | . 1 . . 1 . 1 . . . . . . . . . . . . . . . . . . . . Ram . | . . . . . . . . . . . . . . . . . . . . . . . . . . . Kick . | . . . . . . . . . . . . . . . . . . . . . . . . . . . Crush . | . . . . . . . . . . . . . . . . . . . . . . . . . . . Escape Stasis 15 | . . . . . . . . . . . . . . . . . . . . . 13 . 2 . . . Rewire 182 | . . . . . . . 152 . . . . 19 9 . . . . . . . . . . . 2 . Trap . | . . . . . . . . . . . . . . . . . . . . . . . . . . . Miscellaneous . | . . . . . . . . . . . . . . . . . . . . . . . . . . . Route ------- -11/Scrapyard -10/Materials (discovered 6 exits: *Mat x3 / *Min x2 / [*Sub]) -10/Subcaves (discovered 3 exits: *Mat x2 / [*Scr]) -8/Materials (discovered 3 exits: *Fac x2 / *Sto) -8/Storage (discovered 2 exits: *Fac / *Rec) -8/Recycling -6/Factory (discovered 6 exits: *Fac x2 / *Low x2 / *Ext x2) -6/Extension (discovered 3 exits: *Fac x2 / *Cet) -6/Cetus (discovered 2 exits: *Fac / *Arc) -6/Archives (discovered 3 exits: *Fac / *Hub x2) -6/Hub_04(d) (discovered 2 exits: *Fac x2) -5/Factory (discovered 2 exits: *Upp x2) -5/Upper Caves -5/Upper Caves (discovered 2 exits: *Fac / *Zhi) -5/Zhirov -4/Proximity Caves -4/Factory (discovered 5 exits: *Res x2 / *Upp x2 / Arm) -4/Upper Caves -4/Upper Caves (discovered 2 exits: *Res / *War) -3/Research (discovered 2 exits: Res / *Tes) -3/Testing -2/Research (discovered 3 exits: *Acc / *Qua x2) -2/Quarantine (discovered 2 exits: [*Sec] / *Frg) -2/Protoforge -1/Access -1/Command (discovered 3 exits: [*Sur x2] / [*Ac0]) -1/Access_0 (discovered 1 exit: [*Sur]) History --------- Turn | Location | Event 1 | -11/Scrapyard | Discovered new exit (range 0) 1 | -11/Scrapyard | Entered Materials 247 | -10/Materials | Discovered new exit (range 7) 282 | -10/Materials | Discovered new exit (range 6) 305 | -10/Materials | Build established: Mutant 397 | -10/Materials | Discovered new exit (range 7) 861 | -10/Materials | Core integrity fell below 50% 905 | -10/Materials | Discovered new exit (range 15) 1026 | -10/Materials | Identified exit to Mines 1092 | -10/Materials | Identified exit to Materials 1092 | -10/Materials | Learned location of 1 exit from Materials 1149 | -10/Materials | Learned location of Mines (-10) 1194 | -10/Materials | Learned location of 2 exits from Mines 1252 | -10/Materials | Learned Storage stockpile data 1332 | -10/Materials | Learned 4 Subcaves zone layouts 1389 | -10/Materials | Learned Storage emergency access door positions 1514 | -10/Materials | Entered Subcaves 1515 | -10/Subcaves | Approached by a straggling Scientist 1515 | -10/Subcaves | Identified exit to Materials 1567 | -10/Subcaves | Entered Materials 1567 | -8/Materials | Evolved 4 slots: Propulsion x2, Utility x1, Weapon x1 1568 | -8/Materials | Identified exit to Factory 1997 | -8/Materials | Discovered exit to Factory (range 16) 2054 | -8/Materials | Discovered new exit (range 15) 2131 | -8/Materials | Identified exit to Storage 2148 | -8/Materials | Entered Storage 2170 | -8/Storage | Build established: Gunner 2314 | -8/Storage | Destroyed 9 combat bots 2815 | -8/Storage | Discovered exit to Factory (range 16) 3073 | -8/Storage | Build established: Scavenger-Gunner 3355 | -8/Storage | Used back door to open Recycling access 3355 | -8/Storage | Discovered new exit (range 4) 3360 | -8/Storage | Entered Recycling 3842 | -8/Recycling | Discovered new exit (range 16) 4532 | -8/Recycling | Entered Scraplab 4540 | -8/Recycling | Found Prototype Device 4540 | -8/Recycling | Identified Scrap Engine 5089 | -8/Recycling | Build established: Construct 6852 | -8/Recycling | Entered Factory 6852 | -6/Factory | Evolved 4 slots: Power x1, Utility x3 6879 | -6/Factory | Discovered new exit (range 7) 7112 | -6/Factory | Lost 3 parts (1p2u) 7202 | -6/Factory | Search patrols dispatched 7888 | -6/Factory | Discovered new exit (range 16) 7925 | -6/Factory | Identified exit to Factory 8635 | -6/Factory | Fabricated Huge Storage Unit (x1) 8645 | -6/Factory | Discovered exit to Factory (range 4) 8963 | -6/Factory | Identified exit to Lower Caves 8963 | -6/Factory | Identified exit to Extension 10352 | -6/Factory | First assault squad dispatched 10821 | -6/Factory | Entered Extension 11599 | -6/Extension | Rescued a captive Derelict 11601 | -6/Extension | Rescued a captive Derelict 11802 | -6/Extension | Build established: Commander-Construct 11869 | -6/Extension | Spotted B-75 Beast 11884 | -6/Extension | Spotted B-75 Beast 11888 | -6/Extension | Destroyed B-75 Beast 11895 | -6/Extension | Destroyed B-75 Beast 11925 | -6/Extension | Lost 6 allies 11946 | -6/Extension | Rescued a captive Derelict 11947 | -6/Extension | Rescued a captive Derelict 12205 | -6/Extension | Identified exit to Cetus 12326 | -6/Extension | Learned Factory garrison access intel 12369 | -6/Extension | Learned location of 1 exit from Cetus 12402 | -6/Extension | Learned Factory stockpile data 12404 | -6/Extension | Energy Cycler disabled 12405 | -6/Extension | Rescued a captive Derelict 12406 | -6/Extension | Rescued a captive Derelict 12427 | -6/Extension | Learned Factory emergency access door positions 12438 | -6/Extension | Rescued A7 12440 | -6/Extension | Loaded intel: 7 trap records 12464 | -6/Extension | Learned 4 Factory zone layouts 12498 | -6/Extension | Learned location of Warlord (-4) 12540 | -6/Extension | Learned location of 1 exit from Upper Caves 12607 | -6/Extension | Lost 3 allies 12700 | -6/Extension | Entered Cetus 12700 | -6/Cetus | Accompanied by 4 allies (A7) 12701 | -6/Cetus | Identified exit to Archives 12705 | -6/Cetus | Acquired a Cetus Manufacturing Module code from A7 12747 | -6/Cetus | Spotted Cetus Guard 12747 | -6/Cetus | Spotted Cetus Guard 12748 | -6/Cetus | Spotted Cetus Guard 12749 | -6/Cetus | Spotted Cetus Guard 12755 | -6/Cetus | Destroyed Cetus Guard 12756 | -6/Cetus | Destroyed Cetus Guard 12758 | -6/Cetus | Destroyed Cetus Guard 12767 | -6/Cetus | Allies destroyed Cetus Guard 12798 | -6/Cetus | Lost 3 allies 12875 | -6/Cetus | Escorted A7 to Cetus Mainframe 12887 | -6/Cetus | Build established: Construct 12889 | -6/Cetus | Started Cetus Manufacturing Module 12914 | -6/Cetus | Manufactured an Enhanced Grunt 12939 | -6/Cetus | Manufactured an Enhanced Grunt 12949 | -6/Cetus | Spotted Cetus Guard 12949 | -6/Cetus | Spotted Cetus Guard 12952 | -6/Cetus | Spotted Cetus Guard 12953 | -6/Cetus | Spotted Cetus Guard 12954 | -6/Cetus | Destroyed Cetus Guard 12958 | -6/Cetus | Destroyed Cetus Guard 12962 | -6/Cetus | Allies destroyed Cetus Guard 12964 | -6/Cetus | Manufactured an Enhanced Grunt 12964 | -6/Cetus | Destroyed Cetus Guard 12976 | -6/Cetus | Discovered exit to Factory (range 15) 12984 | -6/Cetus | Met Revision 17 12989 | -6/Cetus | Manufactured an Enhanced Grunt 13014 | -6/Cetus | Manufactured an Enhanced Grunt 13072 | -6/Cetus | Entered Archives 13072 | -6/Archives | Accompanied by 6 allies (A7) 13077 | -6/Archives | Received a hacking code to weaken MAIN.C 13254 | -6/Archives | Discovered exit to Factory (range 15) 13284 | -6/Archives | Build established: Commander-Construct 13401 | -6/Archives | Discovered new exit (range 15) 13417 | -6/Archives | Unable to access archive contents 13454 | -6/Archives | Unable to access archive contents 16038 | -6/Archives | Discovered new exit (range 16) 16070 | -6/Archives | Identified exit to Hub_04(d) 16078 | -6/Archives | Entered Hub_04(d) 16078 | -6/Hub_04(d) | Accompanied by 5 allies 16090 | -6/Hub_04(d) | Discovered exit to Factory (range 16) 16169 | -6/Hub_04(d) | Discovered exit to Factory (range 16) 16395 | -6/Hub_04(d) | Network Hub disabled 16778 | -6/Hub_04(d) | First assault squad dispatched 17004 | -6/Hub_04(d) | Spotted Lightning 17006 | -6/Hub_04(d) | Spotted Lightning 17009 | -6/Hub_04(d) | Spotted Lightning 17025 | -6/Hub_04(d) | Garrison activated, responded to threat 17027 | -6/Hub_04(d) | Destroyed Lightning 17028 | -6/Hub_04(d) | Core integrity fell below 50% 17029 | -6/Hub_04(d) | Allies destroyed Lightning 17033 | -6/Hub_04(d) | Destroyed Lightning 17040 | -6/Hub_04(d) | Found Prototype Device 17040 | -6/Hub_04(d) | Identified Exp. Phase Shifter 17047 | -6/Hub_04(d) | Found Prototype Device 17047 | -6/Hub_04(d) | Identified Exp. EM Shield 17069 | -6/Hub_04(d) | Lost 4 allies 17091 | -6/Hub_04(d) | Entered Factory 17091 | -5/Factory | Evolved 2 slots: Propulsion x1, Utility x1 17092 | -5/Factory | Identified exit to Upper Caves 17096 | -5/Factory | Loaded intel: 4 garrison access locations 17307 | -5/Factory | Build established: Construct 17819 | -5/Factory | Cargo convoy interrupted 17865 | -5/Factory | Entered Upper Caves 17866 | -5/Upper Caves | Identified exit to Upper Caves 18304 | -5/Upper Caves | Learned location of 1 exit from Factory 18721 | -5/Upper Caves | Attracted the attention of an 0b10 outpost 19483 | -5/Upper Caves | Entered an active Warlord outpost 19525 | -5/Upper Caves | Learned Research trap positions 19525 | -5/Upper Caves | Learned Extension garrison access intel 19947 | -5/Upper Caves | Entered another Upper Caves area 19947 | -5/Upper Caves | Accompanied by 1 ally 19988 | -5/Upper Caves | Learned Factory stockpile data 20268 | -5/Upper Caves | Discovered new exit (range 12) 20315 | -5/Upper Caves | Attracted the attention of an 0b10 outpost 20366 | -5/Upper Caves | Destroyed 7 combat bots 20853 | -5/Upper Caves | Discovered new exit (range 11) 20937 | -5/Upper Caves | Identified exit to Zhirov 21585 | -5/Upper Caves | Entered Zhirov 21585 | -5/Zhirov | Accompanied by 1 ally 21585 | -5/Zhirov | Discovered new exit (range 3) 21617 | -5/Zhirov | Met Zhirov 21654 | -5/Zhirov | Learned location of Quarantine (-2) 21654 | -5/Zhirov | Learned location of Testing (-3) 21670 | -5/Zhirov | Zhirov requested help retrieving the SGEMP Prototype 21699 | -5/Zhirov | Found Alien Artifact 21699 | -5/Zhirov | Identified Integrated Dissipator 21699 | -5/Zhirov | Installed Integrated Dissipator, increased core heat dissipation (+20) 21881 | -5/Zhirov | Found Alien Artifact 21947 | -5/Zhirov | Identified exit to Proximity Caves 21951 | -5/Zhirov | Entered Proximity Caves 21951 | -4/Proximity Caves | Accompanied by 1 ally 22038 | -4/Proximity Caves | Learned location of 1 exit from Research 22121 | -4/Proximity Caves | Learned Research interactive machine intel 22225 | -4/Proximity Caves | Learned Research garrison access intel 22855 | -4/Proximity Caves | Attracted the attention of an 0b10 base 22881 | -4/Proximity Caves | Learned Factory emergency access door positions 22881 | -4/Proximity Caves | Learned 6 Upper Caves zone layouts 22954 | -4/Proximity Caves | Spotted B-86 Titan 22959 | -4/Proximity Caves | Destroyed B-86 Titan 23150 | -4/Proximity Caves | Discovered new exit (range 5) 23360 | -4/Proximity Caves | Identified exit to Factory 23361 | -4/Proximity Caves | Entered Factory 23361 | -4/Factory | Evolved 2 slots: Utility x1, Weapon x1 23362 | -4/Factory | Identified exit to Research 23462 | -4/Factory | Discovered exit to Research (range 16) 23918 | -4/Factory | Identified exit to Upper Caves 23918 | -4/Factory | Identified exit to Armory 24001 | -4/Factory | Found Prototype Processor 24007 | -4/Factory | Identified Exp. Terrain Scan Processor 24043 | -4/Factory | Fabricated Centrium Leg? 24568 | -4/Factory | Entered Upper Caves 25293 | -4/Upper Caves | Discovered new exit (range 11) 26041 | -4/Upper Caves | Identified exit to Upper Caves 26047 | -4/Upper Caves | Entered another Upper Caves area 26162 | -4/Upper Caves | Discovered exit to Research (range 4) 26446 | -4/Upper Caves | Learned Research garrison access intel 26498 | -4/Upper Caves | Learned 4 Research zone layouts 26753 | -4/Upper Caves | Discovered new exit (range 9) 27667 | -4/Upper Caves | Attracted the attention of an 0b10 base 27858 | -4/Upper Caves | Identified exit to Warlord 28090 | -4/Upper Caves | Entered Research 28090 | -3/Research | Evolved 2 slots: Power x1, Weapon x1 28091 | -3/Research | Identified exit to Testing 28092 | -3/Research | Identified exit to Research 28094 | -3/Research | Loaded intel: 70 trap records 28095 | -3/Research | Loaded intel: 42 interactive machine locations 28096 | -3/Research | Loaded intel: 3 garrison access locations 28290 | -3/Research | Revision forces began assault on 0b10 28305 | -3/Research | Met up with Revision 17++ 28790 | -3/Research | Research terminal network offline 29116 | -3/Research | Spotted Striker 29132 | -3/Research | Entered Testing 29209 | -3/Testing | Found Prototype Processor 29209 | -3/Testing | Identified Exp. Targeting Computer 29411 | -3/Testing | Central database locked down 29584 | -3/Testing | Watched by a mysterious "MATRIX" hacker 29849 | -3/Testing | Found Prototype Device 29856 | -3/Testing | Identified Adv. EM Shield 30397 | -3/Testing | Found Prototype Device 30433 | -3/Testing | Identified 2N-1CE's Frost Array 31050 | -3/Testing | Discovered exit to Research (range 13) 31208 | -3/Testing | Entered Research 31208 | -2/Research | Evolved 2 slots: Propulsion x1, Utility x1 31209 | -2/Research | Loaded intel: 3 garrison access locations 31653 | -2/Research | Discovered new exit (range 15) 31722 | -2/Research | Identified exit to Access 32130 | -2/Research | Spotted B-90 Cyclops 32137 | -2/Research | Destroyed B-90 Cyclops 32328 | -2/Research | Found Unknown Launcher 32328 | -2/Research | Identified Fusion Bomb Launcher 32438 | -2/Research | Identified exit to Quarantine 32670 | -2/Research | Entered Quarantine 32706 | -2/Quarantine | Found Alien Artifact 32706 | -2/Quarantine | Identified Phase Redirector 32895 | -2/Quarantine | Found Prototype Device 32931 | -2/Quarantine | Found Alien Artifact 32965 | -2/Quarantine | Identified Adv. Kinecellerator 33170 | -2/Quarantine | First assault squad dispatched 33295 | -2/Quarantine | Scanned by Researcher 33374 | -2/Quarantine | Destroyed 15 combat bots 33556 | -2/Quarantine | Found Alien Artifact 33714 | -2/Quarantine | High security lockdown imminent 33758 | -2/Quarantine | Spotted Fortress 33794 | -2/Quarantine | High security lockdown engaged 33797 | -2/Quarantine | Discovered new exit (range 6) 33797 | -2/Quarantine | Discovered new exit (range 7) 33799 | -2/Quarantine | Identified exit to Protoforge 33800 | -2/Quarantine | Entered Protoforge 33896 | -2/Protoforge | Discovered exit to Access (range 16) 33957 | -2/Protoforge | Spotted Overlord 33963 | -2/Protoforge | Superfortress began startup sequence 33970 | -2/Protoforge | Destroyed Overlord 33987 | -2/Protoforge | Found Exp. EM Shield 34110 | -2/Protoforge | Spotted Decapitator 34113 | -2/Protoforge | Spotted Decapitator 34113 | -2/Protoforge | Spotted Decapitator 34113 | -2/Protoforge | Spotted V533-f 34113 | -2/Protoforge | Spotted V703-p 34173 | -2/Protoforge | Found Prototype Device 34178 | -2/Protoforge | Found Cep. NT7 Matterbank 34186 | -2/Protoforge | Spotted Immortal 34186 | -2/Protoforge | Spotted Immortal 34187 | -2/Protoforge | Spotted Decapitator 34187 | -2/Protoforge | Spotted Decapitator 34187 | -2/Protoforge | Spotted Decapitator 34187 | -2/Protoforge | Spotted Decapitator 34187 | -2/Protoforge | Spotted Decapitator 34187 | -2/Protoforge | Spotted Decapitator 34187 | -2/Protoforge | Spotted Decapitator 34195 | -2/Protoforge | Destroyed Decapitator 34202 | -2/Protoforge | Destroyed Immortal 34210 | -2/Protoforge | Destroyed Immortal 34238 | -2/Protoforge | Found Prototype Energy Gun 34240 | -2/Protoforge | Found Prototype Energy Cannon 34247 | -2/Protoforge | Found Prototype Energy Cannon 34281 | -2/Protoforge | Identified Cep. Lightning Penetrator 34288 | -2/Protoforge | Identified Cep. Plasma Driver (x2) 34288 | -2/Protoforge | Identified Crosscalibrator 34299 | -2/Protoforge | Found Prototype Energy Gun 34300 | -2/Protoforge | First assault squad dispatched 34312 | -2/Protoforge | Destroyed Decapitator 34314 | -2/Protoforge | Destroyed Decapitator 34323 | -2/Protoforge | Destroyed Decapitator 34323 | -2/Protoforge | Destroyed Decapitator 34325 | -2/Protoforge | Destroyed Decapitator 34365 | -2/Protoforge | Destroyed 7 combat bots 34371 | -2/Protoforge | Found Cep. Zero-point Core 34479 | -2/Protoforge | Destroyed 11 combat bots 34518 | -2/Protoforge | Spotted V134-k 34548 | -2/Protoforge | Spotted Decapitator 34548 | -2/Protoforge | Spotted Decapitator 34548 | -2/Protoforge | Spotted Decapitator 34548 | -2/Protoforge | Spotted Decapitator 34553 | -2/Protoforge | Destroyed Decapitator 34555 | -2/Protoforge | Destroyed Decapitator 34569 | -2/Protoforge | Destroyed Decapitator 34579 | -2/Protoforge | Destroyed Decapitator 34597 | -2/Protoforge | Found Cep. Hypertargeting System 34600 | -2/Protoforge | Found Prototype Device 34618 | -2/Protoforge | Identified Cep. Disintegration Ray 34625 | -2/Protoforge | Identified Cep. Recoil Nullifier 34628 | -2/Protoforge | Found Prototype Device 34643 | -2/Protoforge | Spotted Immortal 34649 | -2/Protoforge | Spotted Immortal 34651 | -2/Protoforge | Spotted Immortal 34657 | -2/Protoforge | Destroyed Immortal 34667 | -2/Protoforge | Destroyed Immortal 34675 | -2/Protoforge | Destroyed Immortal 34721 | -2/Protoforge | Spotted Immortal 34721 | -2/Protoforge | Spotted Immortal 34812 | -2/Protoforge | Found Cep. Antigrav Storage Unit 34817 | -2/Protoforge | Found Cep. Matter Streamer 34823 | -2/Protoforge | Identified Cep. Weapon Articulator 34908 | -2/Protoforge | Spotted AP7-3 34908 | -2/Protoforge | Spotted AP7-3 34917 | -2/Protoforge | Destroyed AP7-3 34926 | -2/Protoforge | Destroyed AP7-3 34945 | -2/Protoforge | Found Prototype Processor 34945 | -2/Protoforge | Identified Exp. Target Analyzer 34951 | -2/Protoforge | Found Prototype Energy Gun 34951 | -2/Protoforge | Identified Enh. Gamma Rifle 34962 | -2/Protoforge | Identified Subatomic Replicator 34962 | -2/Protoforge | Used Subatomic Replicator to replicate Faulty Cep. Thermoelectric Network 34964 | -2/Protoforge | Found Faulty Cep. Thermoelectric Network 34967 | -2/Protoforge | Found Cep. Cloak Mesh 35101 | -2/Protoforge | Found Cep. Cloak Mesh 35130 | -2/Protoforge | Found Cep. Antigrav Storage Unit 35170 | -2/Protoforge | Additional patrols dispatched to research labs 35185 | -2/Protoforge | Found Alien Artifact 35467 | -2/Protoforge | Found Cep. Helical Railcannon 35600 | -2/Protoforge | Found Prototype Device 35600 | -2/Protoforge | Identified Exp. Thermal Shield 35799 | -2/Protoforge | Spotted Hotshot 35832 | -2/Protoforge | Spotted Striker 35836 | -2/Protoforge | Destroyed Immortal 35838 | -2/Protoforge | Destroyed Striker 35845 | -2/Protoforge | Destroyed Hotshot 35874 | -2/Protoforge | Spotted Decapitator 35883 | -2/Protoforge | Destroyed 7 combat bots 35884 | -2/Protoforge | Spotted Immortal 35887 | -2/Protoforge | Destroyed Immortal 35895 | -2/Protoforge | High security lockdown imminent 35895 | -2/Protoforge | Destroyed Superfortress 35895 | -2/Protoforge | Spotted Immortal 35899 | -2/Protoforge | Identified Transdimensional Reconstructor (x2) 35899 | -2/Protoforge | Warped through subspace 35920 | -2/Protoforge | Lost 3 parts (1p2u) 35956 | -2/Protoforge | Spotted AP7-3 35956 | -2/Protoforge | Spotted AP7-3 35964 | -2/Protoforge | Destroyed AP7-3 35974 | -2/Protoforge | Destroyed AP7-3 35975 | -2/Protoforge | High security lockdown engaged 35984 | -2/Protoforge | Found Prototype Device 35984 | -2/Protoforge | Identified Exp. ECM Suite 36020 | -2/Protoforge | Destroyed Hotshot 36027 | -2/Protoforge | Spotted Hotshot 36027 | -2/Protoforge | Spotted Hotshot 36028 | -2/Protoforge | Spotted Hotshot 36031 | -2/Protoforge | Spotted Hotshot 36035 | -2/Protoforge | Spotted Hotshot 36051 | -2/Protoforge | Core integrity fell below 50% 36053 | -2/Protoforge | Spotted Hotshot 36056 | -2/Protoforge | Spotted Hotshot 36075 | -2/Protoforge | Entered Access 36075 | -1/Access | Evolved 2 slots: Utility x2 36231 | -1/Access | Spotted B-99 Colossus 36231 | -1/Access | Spotted B-99 Colossus 36243 | -1/Access | Spotted Executioner 36285 | -1/Access | Spotted Executioner 36325 | -1/Access | First assault squad dispatched 36404 | -1/Access | Spotted B-99 Colossus 36436 | -1/Access | Spotted B-99 Colossus 36450 | -1/Access | Spotted Executioner 36450 | -1/Access | Spotted Executioner 36457 | -1/Access | High security lockdown imminent 36457 | -1/Access | Destroyed Executioner 36459 | -1/Access | Destroyed Executioner 36462 | -1/Access | Found Exp. Targeting Computer 36464 | -1/Access | Found Prototype Processor 36475 | -1/Access | Build established: Infiltrator-Construct 36498 | -1/Access | Discovered new exit (range 7) 36500 | -1/Access | Entered Command 36507 | -1/Command | Identified Exp. Core Analyzer 36609 | -1/Command | Spotted M Guard 36611 | -1/Command | Spotted Combat Programmer 36611 | -1/Command | Spotted Combat Programmer 36615 | -1/Command | Destroyed Combat Programmer 36628 | -1/Command | Destroyed M Guard 36630 | -1/Command | Spotted M Guard 36637 | -1/Command | Destroyed M Guard 36638 | -1/Command | Destroyed Combat Programmer 36638 | -1/Command | All MAIN.C guards destroyed 36651 | -1/Command | Found Prototype Device 36651 | -1/Command | Identified Thermal Barrier 36654 | -1/Command | Found Prototype Device 36654 | -1/Command | Identified AEGIS Remote Shield 36656 | -1/Command | Found Prototype Reactor 36719 | -1/Command | Met MAIN.C 36719 | -1/Command | Hacked MAIN.C using A7's code 36724 | -1/Command | 0b10 Conduit disabled 36727 | -1/Command | Destroyed MAIN.C Shell 36729 | -1/Command | MAIN.C activated Command garrisons 36738 | -1/Command | Destroyed MAIN.C 36744 | -1/Command | Identified Zero-point Reactor 36744 | -1/Command | Discovered new exit (range 36) 36744 | -1/Command | Discovered new exit (range 99) 36744 | -1/Command | Extracted map data and part IDs from MAIN.C's data core 36905 | -1/Command | Build established: Scavenger-Construct 36919 | -1/Command | Spotted B-99 Colossus 36921 | -1/Command | Destroyed B-99 Colossus 37096 | -1/Command | Destroyed B-99 Colossus 37869 | -1/Command | Found Exp. Core Analyzer 37917 | -1/Command | Found Corrupted Multirail 38191 | -1/Command | Found Cld. Nova Cannon 38289 | -1/Command | Found Exp. Force Field 38974 | -1/Command | Warped through subspace to slip node 38974 | -1/Command | Discovered new exit (range 5) 38981 | -1/Command | Entered Access_0 38983 | -1/Access_0 | Met Architect 38987 | -1/Access_0 | Destroyed A8 38994 | -1/Access_0 | Architect warped through subspace 39046 | -1/Access_0 | Architect warped through subspace 39065 | -1/Access_0 | Architect warped through subspace 39088 | -1/Access_0 | Architect warped through subspace 39108 | -1/Access_0 | Architect warped through subspace 39128 | -1/Access_0 | Architect warped through subspace 39146 | -1/Access_0 | Architect warped through subspace 39170 | -1/Access_0 | A6 warped into view 39177 | -1/Access_0 | Destroyed A6 39210 | -1/Access_0 | Architect warped through subspace 39215 | -1/Access_0 | Subspace Access Node disabled 39240 | -1/Access_0 | Architect warped through subspace 39268 | -1/Access_0 | Architect warped through subspace 39301 | -1/Access_0 | Architect warped through subspace 39309 | -1/Access_0 | Found Exp. Weapon Cycler 39319 | -1/Access_0 | Destroyed 8 combat bots 39323 | -1/Access_0 | Architect warped through subspace 39337 | -1/Access_0 | Architect warped through subspace 39340 | -1/Access_0 | A5 warped into view 39342 | -1/Access_0 | Destroyed A5 39352 | -1/Access_0 | Architect warped through subspace 39368 | -1/Access_0 | Architect warped through subspace 39379 | -1/Access_0 | Architect warped through subspace 39397 | -1/Access_0 | Architect warped through subspace 39408 | -1/Access_0 | Subspace Access Node disabled 39417 | -1/Access_0 | Architect warped through subspace 39440 | -1/Access_0 | Architect warped through subspace 39472 | -1/Access_0 | Architect warped through subspace 39491 | -1/Access_0 | Architect warped through subspace 39496 | -1/Access_0 | Subspace Access Node disabled 39499 | -1/Access_0 | Architect warped through subspace 39521 | -1/Access_0 | Architect warped through subspace 39530 | -1/Access_0 | Architect warped through subspace 39538 | -1/Access_0 | Architect warped through subspace 39546 | -1/Access_0 | Architect warped through subspace 39559 | -1/Access_0 | Subspace Access Node disabled 39565 | -1/Access_0 | Destroyed Architect 39566 | -1/Access_0 | Architect triggered a singularity event 39566 | -1/Access_0 | Released all parts (14) 39572 | -1/Access_0 | Extracted unknown sensor trigger ID from Architect's data core 39573 | -1/Access_0 | Found Hpw. Transdimensional Reconstructor 39573 | -1/Access_0 | Warped through subspace to slip node 39573 | -1/Access_0 | Discovered new exit (range 8) 39577 | -1/Access_0 | Crushed by singularity! Last Messages --------------- 39566_ Released Exp. Core Analyzer. 39566_ Released Cep. Antigrav Storage Unit. 39566_ Released Exp. Weapon Cycler. 39567_ A0_COM: 10. 39568_ A0_COM: 9. 39569_ A0_COM: 8. 39570_ A0_COM: 7. 39571_ A0_COM: 6. 39572_ A0_COM: 5. 39572_ Acquired data core, extracted unknown sensor trigger ID. 39573_ A0_COM: 4. 39573_ Acquired Hpw. Transdimensional Reconstructor. 39573_ Warped through subspace, drawn to slip node. 39573_ EXIT=FOUND 39574_ A0_COM: 3. 39575_ A0_COM: 2. 39576_ A0_COM: 1. Map ----- +----------------------------------------------------+ | | | | | | | | | | | | | | | | | | | | | | | | | | | | | ?????????????????????????????????????????????????? | | ?????????????????????????????????????????????????? | | ?????????????????????????????????????????????????? | | ?????????????????????????????????????????????????? | | ?????????????????????????????????????????????????? | | ?????????????????????????????????????????????????? | | ????????????????????????###??????????????????????? | | ???????????????????????## ##?????????????????????? | | ???????????????????????# #?????????????????????? | | ???????????????????????# < #?????????????????????? | | ??????????????????????## #?????????????????????? | | ??????????????????????# @ #?????????????????????? | | ??????????????????????# ##?????????????????????? | | ??????????????????????## #?????????????????????? | | ??????????????????????# #?????????????????????? | | ??????????????????????# ##?????????????????????? | | ??????????????????????# < #?????????????????????? | | ??????????????????????# ##?????????????????????? | | ??????????????????????## #??????????????????????? | | ???????????????????????####??????????????????????? | | ?????????????????????????????????????????????????? | | ?????????????????????????????????????????????????? | | ?????????????????????????????????????????????????? | | ?????????????????????????????????????????????????? | | ?????????????????????????????????????????????????? | | ?????????????????????????????????????????????????? | | ?????????????????????????????????????????????????? | | ?????????????????????????????????????????????????? | | ?????????????????????????????????????????????????? | | ?????????????????????????????????????????????????? | | ?????????????????????????????????????????????????? | | ?????????????????????????????????????????????????? | | ?????????????????????????????????????????????????? | | ?????????????????????????????????????????????????? | | ?????????????????????????????????????????????????? | | ?????????????????????????????????????????????????? | +----------------------------------------------------+ Best States ------------- Heat Dissipation 169 Coolant Potential 120 Energy Generation 141 Energy Capacity 2681 Matter Stores 936 Matter Capacity 1050 Sight Range 16 Robot Scan Range 18 Terrain Scan Density 10 ECM Strength 2 Jamming Range 16 Cloak Strength 9 Armor Coverage 225 Resistance: KI 30 Resistance: EM 75 Utility Shielding 90 Weapon Cycling 30 Phase Shifting 20 Evasion (%) 77 Targeting Accuracy 42 Core Analysis 12 Recoil Reduction 5 Matter Filtering 50 Particle Charging 30 Kinecelleration 50 Offensive Hacking 10 Item Schematics ----------------- Huge Storage Unit | -8/Recycling | Hacked Imp. Arc Thrower | -5/Zhirov | Free Exp. Optical Array | -5/Zhirov | Free Exp. Heat Sink | -5/Zhirov | Free Assault Drone Bay | -5/Zhirov | Free Exp. Matter Compressor | -2/Quarantine | Archive Exp. Cooling System | -2/Protoforge | Archive Spectral Analyzer | -2/Protoforge | Archive Vibroblade | -2/Protoforge | Archive Exp. Shield Generator | -2/Protoforge | Archive Cld. Q-thruster | -2/Protoforge | Archive Quantum Shading Machine | -2/Protoforge | Archive Imp. Diametric Drive | -2/Protoforge | Archive Exp. EM Disruption Field | -2/Protoforge | Archive Adv. KE Penetrator | -2/Protoforge | Archive Neutron Missile Launcher | -2/Protoforge | Archive Robot Schematics ------------------ Y-72 Warden | -2/Quarantine | Archive R-06 Scavenger | -2/Protoforge | Archive A-27 Freighter | -2/Protoforge | Archive C-65 Expert | -2/Protoforge | Archive S-43 Plague | -2/Protoforge | Archive M-36 Artificer | -2/Protoforge | Archive Fabricated ------------ Huge Storage Unit | x1 | -6/Factory Centrium Leg | x1 | -4/Factory | Preloaded Repaired ---------- Nothing Studied --------- HERF Cannon | -3/Research | Hacked Thunder Leg | -3/Research | Hacked Hvy. Flak Cannon | -3/Testing | Hacked Gamma Rifle | -2/Research | Hacked Enh. Nova Cannon | -2/Research | Hacked Quantum Reactor | -2/Quarantine | Hacked Alien Tech Used ----------------- Integrated Dissipator Phase Redirector Subatomic Replicator Transdimensional Reconstructor High-powered Transdimensional Reconstructor Achievements -------------- Perfect Aim Triple Plus Challenges ------------ None Game ------ Seed WarlordAssaultLog Manual? 0 Play Time 05:35:37 Cumulative 442.1 hours Start 2026.09.20 @ 18:52:28 End 2026.09.21 @ 21:22:21 Sessions 9 Manual Loads 0 Difficulty Rogue Special Mode None Game No. 381 Rogue 327 Adventurer 54 Explorer 0 Win Type - Total 25 Types 15/2/1/1/1/1/1/1/1/1 Lore% 84 Gallery% 72 Achievement% 73 Wizard Run 0 Options --------- Layout 1 ASCII 0 Keyboard 0 Movement Mouse Keybinds 1 Fullscreen 2 Font 32/Tamsyn Map View 50x35 Zoom Use 0% Tactical HUD 1 Map Filters NONE Filters NONE Steam 1 RUN: 9dccc114-0d26-46bc-bfca-c49050f3d0e2